Workbook

Sheet BM18
B1: SERVICIO DE SALUD
B2: =CONCATENATE("COMUNA: ",[1]NOMBRE!B2," ","( ",[1]NOMBRE!C2,[1]NOMBRE!D2,[1]NOMBRE!E2,[1]NOMBRE!F2,[1]NOMBRE!G2," )") -> COMUNA: 0 ( 00000 )
B3: =CONCATENATE("ESTABLECIMIENTO/ESTRATEGIA: ",[1]NOMBRE!B3," ","( ",[1]NOMBRE!C3,[1]NOMBRE!D3,[1]NOMBRE!E3,[1]NOMBRE!F3,[1]NOMBRE!G3,[1]NOMBRE!H3," )") -> ESTABLECIMIENTO/ESTRATEGIA: 0 ( 000000 )
B4: =CONCATENATE("MES: ",[1]NOMBRE!B6," ","( ",[1]NOMBRE!C6,[1]NOMBRE!D6," )") -> MES: 0 ( 00 )
B5: =CONCATENATE("AÑO: ",[1]NOMBRE!B7) -> AÑO: 2025
B8: REM-B18. ACTIVIDADES DE APOYO DIAGNOSTICO Y TERAPEUTICO (USO EXCLUSIVO DE ESTABLECIMIENTOS MUNICIPALES)
B10: SECCIÓN A: EXÁMENES DE DIAGNOSTICO
B11: EXÁMENES | E11: TOTAL | F11: SAPU/SAR/SUR | G11: Resto Establecimientos APS
F12: Total | G12: Total
B13: TOTAL EXÁMENES LABORATORIO | E13: =SUM(F13:G13) -> 758,991 | F13: =SUM(F14:F20) -> 5,296 | G13: =SUM(G14:G20) -> 753,695
A14: 18010100 | B14: I | C14: HEMATOLÓGICOS | E14: 99,508 | F14: =IFERROR(VLOOKUP($A14,[2]filtro.12!$A5:$H178,3,FALSE),0) -> 2 | G14: =IFERROR(VLOOKUP($A14,[2]filtro.12!A5:H178,4,FALSE),0) -> 99,506
A15: 18010200 | B15: II | C15: BIOQUÍMICOS | E15: 408,037 | F15: =IFERROR(VLOOKUP($A15,[2]filtro.12!$A6:$H179,3,FALSE),0) -> 9 | G15: =IFERROR(VLOOKUP($A15,[2]filtro.12!A6:H179,4,FALSE),0) -> 408,028
A16: 18090100 | B16: III | C16: HORMONALES | E16: 78,993 | F16: =IFERROR(VLOOKUP($A16,[2]filtro.12!$A7:$H180,3,FALSE),0) -> 0 | G16: =IFERROR(VLOOKUP($A16,[2]filtro.12!A7:H180,4,FALSE),0) -> 78,993
A17: 18010500 | B17: V | C17: INMUNOLÓGICOS | E17: 2,104 | F17: =IFERROR(VLOOKUP($A17,[2]filtro.12!$A8:$H181,3,FALSE),0) -> 0 | G17: =IFERROR(VLOOKUP($A17,[2]filtro.12!A8:H181,4,FALSE),0) -> 2,104
A18: 18010601 | B18: VI | C18: MICROBIOLÓGICOS | E18: 27,208 | F18: =IFERROR(VLOOKUP($A18,[2]filtro.12!$A9:$H182,3,FALSE),0) -> 40 | G18: =IFERROR(VLOOKUP($A18,[2]filtro.12!A9:H182,4,FALSE),0) -> 27,168
A19: 18010800 | B19: VIII | C19: EX. DE DEPOSICIONES EXUDADOS. SECREC. Y OTROS LIQ. | E19: 480 | F19: =IFERROR(VLOOKUP($A19,[2]filtro.12!$A10:$H183,3,FALSE),0) -> 0 | G19: =IFERROR(VLOOKUP($A19,[2]filtro.12!A10:H183,4,FALSE),0) -> 480
A20: 18010900 | B20: IX | C20: ORINA | E20: 142,661 | F20: =IFERROR(VLOOKUP($A20,[2]filtro.12!$A11:$H184,3,FALSE),0) -> 5,245 | G20: =IFERROR(VLOOKUP($A20,[2]filtro.12!A11:H184,4,FALSE),0) -> 137,416
B21: TOTAL EXÁMENES IMAGENOLOGIA
A22: 18011001 | B22: a) | C22: EX. RADIOLÓGICOS SIMPLES | E22: =IFERROR(VLOOKUP($A22,[2]filtro.12!$A5:$H178,2,FALSE),0) -> 43,237 | F22: =IFERROR(VLOOKUP($A22,[2]filtro.12!A5:H178,3,FALSE),0) -> 38,654 | G22: =IFERROR(VLOOKUP($A22,[2]filtro.12!$A5:$H178,4,FALSE),0) -> 4,583
A23: 18700370 | C23: ECOGRAFÍAS OBSTÉTRICAS Y GINECOLÓGICAS | E23: =IFERROR(VLOOKUP($A23,[2]filtro.12!$A6:$H179,2,FALSE),0) -> 4,304 | F23: =IFERROR(VLOOKUP($A23,[2]filtro.12!A6:H179,3,FALSE),0) -> 0 | G23: =IFERROR(VLOOKUP($A23,[2]TdBM.12!A6:H179,4,FALSE),0) -> 4,304
A24: 18700240 | C24: Ecografías Obstétricas Primer Trimestre (<11 semanas) | D24: Médico/a | E24: =IFERROR(VLOOKUP($A24,[2]filtro.12!$A7:$H180,2,FALSE),0) -> 1 | F24: =IFERROR(VLOOKUP($A24,[2]filtro.12!A7:H180,3,FALSE),0) -> 0 | G24: =IFERROR(VLOOKUP($A24,[2]TdBM.12!A7:H180,4,FALSE),0) -> 1
A25: 18700250 | D25: Matrón/a | E25: =IFERROR(VLOOKUP($A25,[2]filtro.12!$A8:$H181,2,FALSE),0) -> 903 | F25: =IFERROR(VLOOKUP($A25,[2]filtro.12!A8:H181,3,FALSE),0) -> 0 | G25: =IFERROR(VLOOKUP($A25,[2]TdBM.12!A8:H181,4,FALSE),0) -> 903
A26: 18700260 | C26: Ecografias Obstétricas Primer Trimestre (11 - 14 semanas) | D26: Médico/a | E26: =IFERROR(VLOOKUP($A26,[2]filtro.12!$A9:$H182,2,FALSE),0) -> 1 | F26: =IFERROR(VLOOKUP($A26,[2]filtro.12!A9:H182,3,FALSE),0) -> 0 | G26: =IFERROR(VLOOKUP($A26,[2]TdBM.12!A9:H182,4,FALSE),0) -> 1
A27: 18700270 | D27: Matrón/a | E27: =IFERROR(VLOOKUP($A27,[2]filtro.12!$A10:$H183,2,FALSE),0) -> 1,659 | F27: =IFERROR(VLOOKUP($A27,[2]filtro.12!A10:H183,3,FALSE),0) -> 0 | G27: =IFERROR(VLOOKUP($A27,[2]TdBM.12!A10:H183,4,FALSE),0) -> 1,659
A28: 18700280 | C28: Ecografias Obstétricas Segundo Trimestre (22 - 24 semanas) | D28: Médico/a | E28: =IFERROR(VLOOKUP($A28,[2]filtro.12!$A11:$H184,2,FALSE),0) -> 1 | F28: =IFERROR(VLOOKUP($A28,[2]filtro.12!A11:H184,3,FALSE),0) -> 0 | G28: =IFERROR(VLOOKUP($A28,[2]TdBM.12!A11:H184,4,FALSE),0) -> 1
A29: 18700290 | D29: Matrón/a | E29: =IFERROR(VLOOKUP($A29,[2]filtro.12!$A12:$H185,2,FALSE),0) -> 967 | F29: =IFERROR(VLOOKUP($A29,[2]filtro.12!A12:H185,3,FALSE),0) -> 0 | G29: =IFERROR(VLOOKUP($A29,[2]TdBM.12!A12:H185,4,FALSE),0) -> 967
A30: 18700300 | C30: Ecografias Obstétricas Tercer Trimestre (30 - 34 semanas) | D30: Médico/a | E30: =IFERROR(VLOOKUP($A30,[2]filtro.12!$A13:$H186,2,FALSE),0) -> 8 | F30: =IFERROR(VLOOKUP($A30,[2]filtro.12!A13:H186,3,FALSE),0) -> 0 | G30: =IFERROR(VLOOKUP($A30,[2]TdBM.12!A13:H186,4,FALSE),0) -> 8
A31: 18700310 | D31: Matrón/a | E31: =IFERROR(VLOOKUP($A31,[2]filtro.12!$A14:$H187,2,FALSE),0) -> 955 | F31: =IFERROR(VLOOKUP($A31,[2]filtro.12!A14:H187,3,FALSE),0) -> 0 | G31: =IFERROR(VLOOKUP($A31,[2]TdBM.12!A14:H187,4,FALSE),0) -> 955
C32: Total Ecografías Obstétricas por profesional | D32: Médico/a | E32: =IFERROR(VLOOKUP($A32,[2]filtro.12!$A15:$H188,2,FALSE),0) -> 0 | F32: =IFERROR(VLOOKUP($A32,[2]filtro.12!A15:H188,3,FALSE),0) -> 0
D33: Matrón/a | E33: =IFERROR(VLOOKUP($A33,[2]filtro.12!$A16:$H189,2,FALSE),0) -> 0 | F33: =IFERROR(VLOOKUP($A33,[2]filtro.12!A16:H189,3,FALSE),0) -> 0
A34: 18700320 | C34: Ecografía de seguimiento DIU (Regulación de la Fertilidad) | D34: Médico/a | E34: =IFERROR(VLOOKUP($A34,[2]filtro.12!$A17:$H190,2,FALSE),0) -> 0 | F34: =IFERROR(VLOOKUP($A34,[2]filtro.12!A17:H190,3,FALSE),0) -> 0 | G34: =IFERROR(VLOOKUP($A34,[2]TdBM.12!A17:H190,4,FALSE),0) -> 0
A35: 18700330 | D35: Matrón/a | E35: =IFERROR(VLOOKUP($A35,[2]filtro.12!$A18:$H191,2,FALSE),0) -> 201 | F35: =IFERROR(VLOOKUP($A35,[2]filtro.12!A18:H191,3,FALSE),0) -> 0 | G35: =IFERROR(VLOOKUP($A35,[2]TdBM.12!A18:H191,4,FALSE),0) -> 201
A36: 18700340 | C36: Ecografía Transvaginal (control de Climaterio y Ginecológico) | D36: Médico/a | E36: =IFERROR(VLOOKUP($A36,[2]filtro.12!$A19:$H192,2,FALSE),0) -> 5 | F36: =IFERROR(VLOOKUP($A36,[2]filtro.12!A19:H192,3,FALSE),0) -> 0 | G36: =IFERROR(VLOOKUP($A36,[2]TdBM.12!A19:H192,4,FALSE),0) -> 5
A37: 18700350 | D37: Matrón/a | E37: =IFERROR(VLOOKUP($A37,[2]filtro.12!$A20:$H193,2,FALSE),0) -> 604 | F37: =IFERROR(VLOOKUP($A37,[2]filtro.12!A20:H193,3,FALSE),0) -> 0 | G37: =IFERROR(VLOOKUP($A37,[2]TdBM.12!A20:H193,4,FALSE),0) -> 604
B39: SECCIÓN B: PROCEDIMIENTO E INTERVENCIONES QUIRÚRGICAS DE APOYO CLÍNICO Y TERAPÉUTICO
B40: PROCEDIMIENTOS | C40: TOTAL | D40: SAPU/SAR/SUR | E40: Resto Establecimientos APS
D41: Total | E41: Total
A42: 18020200 | B42: PROC. DE OTORRINOLARINGOLOGÍA | C42: =IFERROR(VLOOKUP($A42,[2]filtro.12!A5:H178,2,FALSE),0) -> 632 | D42: =IFERROR(VLOOKUP($A42,[2]filtro.12!A5:H178,3,FALSE),0) -> 178 | E42: =IFERROR(VLOOKUP($A42,[2]filtro.12!A5:H178,4,FALSE),0) -> 454
A43: 18020300 | B43: PROC. DE NEUMOLOGÍA | C43: =IFERROR(VLOOKUP($A43,[2]filtro.12!A6:H179,2,FALSE),0) -> 28,141 | D43: =IFERROR(VLOOKUP($A43,[2]filtro.12!A6:H179,3,FALSE),0) -> 21,919 | E43: =IFERROR(VLOOKUP($A43,[2]filtro.12!A6:H179,4,FALSE),0) -> 6,222
A44: 18020400 | B44: PROC. DE DERMATOLOGÍA | C44: =IFERROR(VLOOKUP($A44,[2]filtro.12!A7:H180,2,FALSE),0) -> 113 | D44: =IFERROR(VLOOKUP($A44,[2]filtro.12!A7:H180,3,FALSE),0) -> 6 | E44: =IFERROR(VLOOKUP($A44,[2]filtro.12!A7:H180,4,FALSE),0) -> 107
A45: 18030000 | B45: INTERVENCIONES QUIRÚRGICAS MENORES (SUB-GRUPO TEGUMENTOS) | C45: =IFERROR(VLOOKUP($A45,[2]filtro.12!A8:H181,2,FALSE),0) -> 4,296 | D45: =IFERROR(VLOOKUP($A45,[2]filtro.12!A8:H181,3,FALSE),0) -> 2,944 | E45: =IFERROR(VLOOKUP($A45,[2]filtro.12!A8:H181,4,FALSE),0) -> 1,352
A46: 18020500 | B46: PROC. DE CARDIOLOGÍA | C46: =IFERROR(VLOOKUP($A46,[2]filtro.12!A9:H182,2,FALSE),0) -> 138,381 | D46: =IFERROR(VLOOKUP($A46,[2]filtro.12!A9:H182,3,FALSE),0) -> 36,215 | E46: =IFERROR(VLOOKUP($A46,[2]filtro.12!A9:H182,4,FALSE),0) -> 102,166
A47: 18020600 | B47: PROC. DE GASTROENTEROLOGÍA | C47: =IFERROR(VLOOKUP($A47,[2]filtro.12!A10:H183,2,FALSE),0) -> 848 | D47: =IFERROR(VLOOKUP($A47,[2]filtro.12!A10:H183,3,FALSE),0) -> 608 | E47: =IFERROR(VLOOKUP($A47,[2]filtro.12!A10:H183,4,FALSE),0) -> 240
A48: 18020700 | B48: PROC. DE UROLOGÍA | C48: =IFERROR(VLOOKUP($A48,[2]filtro.12!A11:H184,2,FALSE),0) -> 3,127 | D48: =IFERROR(VLOOKUP($A48,[2]filtro.12!A11:H184,3,FALSE),0) -> 1,723 | E48: =IFERROR(VLOOKUP($A48,[2]filtro.12!A11:H184,4,FALSE),0) -> 1,404
A49: 18020800 | B49: PROC. ORTOPEDIA Y TRAUMATOLOGÍA | C49: =IFERROR(VLOOKUP($A49,[2]filtro.12!A12:H185,2,FALSE),0) -> 2,079 | D49: =IFERROR(VLOOKUP($A49,[2]filtro.12!A12:H185,3,FALSE),0) -> 2,079 | E49: =IFERROR(VLOOKUP($A49,[2]filtro.12!A12:H185,4,FALSE),0) -> 0
A50: 18020900 | B50: PROC. GINECOLOGÍA | C50: =IFERROR(VLOOKUP($A50,[2]filtro.12!A13:H186,2,FALSE),0) -> 37,722 | D50: =IFERROR(VLOOKUP($A50,[2]filtro.12!A13:H186,3,FALSE),0) -> 25 | E50: =IFERROR(VLOOKUP($A50,[2]filtro.12!A13:H186,4,FALSE),0) -> 37,697
A51: 18700360 | B51: MISCELÁNEOS | C51: =IFERROR(VLOOKUP($A51,[2]filtro.12!A14:H187,2,FALSE),0) -> 1,082,893 | D51: =IFERROR(VLOOKUP($A51,[2]filtro.12!A14:H187,3,FALSE),0) -> 418,526 | E51: =IFERROR(VLOOKUP($A51,[2]filtro.12!A14:H187,4,FALSE),0) -> 664,367
B52: TOTAL | C52: =SUM(C42:C51) -> 1,298,232 | D52: =SUM(D42:D51) -> 484,223 | E52: =SUM(E42:E51) -> 814,009
B54: SECCIÓN C: PRESCRIPCIONES ADMINISTRADAS EN URGENCIA
B55: ATENCIÓN | C55: TOTAL
A57: 18400700 | B57: URGENCIA SAPU/SAR/SUR | C57: =IFERROR(VLOOKUP($A57,[2]filtro.12!A5:H178,2,FALSE),0) -> 566,706
B58: SECCIÓN D: OTROS TRASLADOS DE PACIENTES
B59: TIPO DE ACCION | D59: TOTAL | E59: POR COMPRA DE SERVICIO
A60: 18090200 | B60: TRASLADOS NO DE URGENCIA | C60: AMBULANCIA | D60: =IFERROR(VLOOKUP($A60,[2]filtro.12!A5:H178,2,FALSE),0) -> 9,210 | E60: =IFERROR(VLOOKUP($A60,[2]filtro.12!A5:H178,3,FALSE),0) -> 1,373
A61: 18090300 | C61: MARÍTIMO | D61: =IFERROR(VLOOKUP($A61,[2]filtro.12!A6:H179,2,FALSE),0) -> 64 | E61: =IFERROR(VLOOKUP($A61,[2]filtro.12!A6:H179,3,FALSE),0) -> 0
A62: 18090400 | C62: AÉREO | D62: =IFERROR(VLOOKUP($A62,[2]filtro.12!A7:H180,2,FALSE),0) -> 0 | E62: =IFERROR(VLOOKUP($A62,[2]filtro.12!A7:H180,3,FALSE),0) -> 0
A65: CODIGOS ELIMINADOS
A66: 18011002
A67: 18400500
A68: 18020100
A69: 18400400
A70: 18040100
A71: 18040200
A72: 18090000
A73: 18050100
A74: 18050400
A75: 18050500
A76: 18050200
A77: 18050300
A78: 18070100
A79: 18070300
A80: 18400900
A81: 18700100
A83: CODIGO NUEVO
A84: 18700360
A85: 18700370
B96: =SUM(E13:E37,C42:C52,C57,D60:D62) -> 4,743,272

Sheet BM18A
B1: SERVICIO DE SALUD
B2: =CONCATENATE("COMUNA: ",[1]NOMBRE!B2," ","( ",[1]NOMBRE!C2,[1]NOMBRE!D2,[1]NOMBRE!E2,[1]NOMBRE!F2,[1]NOMBRE!G2," )") -> COMUNA: 0 ( 00000 )
B3: =CONCATENATE("ESTABLECIMIENTO/ESTRATEGIA: ",[1]NOMBRE!B3," ","( ",[1]NOMBRE!C3,[1]NOMBRE!D3,[1]NOMBRE!E3,[1]NOMBRE!F3,[1]NOMBRE!G3,[1]NOMBRE!H3," )") -> ESTABLECIMIENTO/ESTRATEGIA: 0 ( 000000 )
B4: =CONCATENATE("MES: ",[1]NOMBRE!B6," ","( ",[1]NOMBRE!C6,[1]NOMBRE!D6," )") -> MES: 0 ( 00 )
B5: =CONCATENATE("AÑO: ",[1]NOMBRE!B7) -> AÑO: 2025
B7: REM-18A - LIBRO DE PRESTACIONES DE APOYO DIAGNOSTICO y TERAPÉUTICO (USO EXCLUSIVO DE ESTABLECIMIENTOS MUNICIPALES)
B9: SECCIÓN A: EXÁMENES DE DIAGNOSTICO
B10: CÓDIGOS | C10: EXÁMENES | D10: TOTAL | E10: SAPU/SAR/SUR | F10: Resto Establecimientos APS | G10: Compra de Servicios
B12: SANGRE HEMATOLOGÍA
A13: 80301036 | B13: 0301036 | C13: Hematocrito (proc. aut.) | D13: =IFERROR(VLOOKUP($A13,[2]filtro.12!$A5:$H178,2,FALSE),0) -> 5,995 | E13: =IFERROR(VLOOKUP($A13,[2]filtro.12!$A5:$H178,3,FALSE),0) -> 0 | F13: =IFERROR(VLOOKUP($A13,[2]filtro.12!$A5:$H178,4,FALSE),0) -> 5,493 | G13: =IFERROR(VLOOKUP($A13,[2]filtro.12!$A5:$H178,5,FALSE),0) -> 32,822
A14: 80301041 | B14: 0301041 | C14: Hemoglobina glicada A1c | D14: =IFERROR(VLOOKUP($A14,[2]filtro.12!$A6:$H179,2,FALSE),0) -> 37,710 | E14: =IFERROR(VLOOKUP($A14,[2]filtro.12!$A6:$H179,3,FALSE),0) -> 0 | F14: =IFERROR(VLOOKUP($A14,[2]filtro.12!$A6:$H179,4,FALSE),0) -> 37,397 | G14: =IFERROR(VLOOKUP($A14,[2]filtro.12!$A6:$H179,5,FALSE),0) -> 59,200
A15: 80301045 | B15: 0301045 | C15: Hemograma (incluye recuentos de leucocitos, eritrocitos, plaquetas, hemoglobina, hematocrito, fórmula leucocitaria, características de los elementos figurados y velocidad de eritrosedimentación) | D15: =IFERROR(VLOOKUP($A15,[2]filtro.12!$A7:$H180,2,FALSE),0) -> 52,253 | E15: =IFERROR(VLOOKUP($A15,[2]filtro.12!$A7:$H180,3,FALSE),0) -> 1 | F15: =IFERROR(VLOOKUP($A15,[2]filtro.12!$A7:$H180,4,FALSE),0) -> 52,195 | G15: =IFERROR(VLOOKUP($A15,[2]filtro.12!$A7:$H180,5,FALSE),0) -> 77,705
A16: 80301065 | B16: 0301065 | C16: Recuento de leucocitos, absoluto (proc. aut.) | D16: =IFERROR(VLOOKUP($A16,[2]filtro.12!$A8:$H181,2,FALSE),0) -> 50 | E16: =IFERROR(VLOOKUP($A16,[2]filtro.12!$A8:$H181,3,FALSE),0) -> 0 | F16: =IFERROR(VLOOKUP($A16,[2]filtro.12!$A8:$H181,4,FALSE),0) -> 50 | G16: =IFERROR(VLOOKUP($A16,[2]filtro.12!$A8:$H181,5,FALSE),0) -> 139
A17: 80301067 | B17: 0301067 | C17: Recuento de plaquetas (absoluto) | D17: =IFERROR(VLOOKUP($A17,[2]filtro.12!$A9:$H182,2,FALSE),0) -> 146 | E17: =IFERROR(VLOOKUP($A17,[2]filtro.12!$A9:$H182,3,FALSE),0) -> 0 | F17: =IFERROR(VLOOKUP($A17,[2]filtro.12!$A9:$H182,4,FALSE),0) -> 146 | G17: =IFERROR(VLOOKUP($A17,[2]filtro.12!$A9:$H182,5,FALSE),0) -> 75
A18: 82201010 | B18: 0301059 | C18: Tiempo de protrombina (incluye INR, Razón Internacional Normalizada) | D18: =IFERROR(VLOOKUP($A18,[2]filtro.12!$A10:$H183,2,FALSE),0) -> 2,905 | E18: =IFERROR(VLOOKUP($A18,[2]filtro.12!$A10:$H183,3,FALSE),0) -> 1 | F18: =IFERROR(VLOOKUP($A18,[2]filtro.12!$A10:$H183,4,FALSE),0) -> 2,904 | G18: =IFERROR(VLOOKUP($A18,[2]filtro.12!$A10:$H183,5,FALSE),0) -> 2,910
A19: 80301086 | B19: 0301086 | C19: Velocidad de eritrosedimentación (proc. aut.) | D19: =IFERROR(VLOOKUP($A19,[2]filtro.12!$A11:$H184,2,FALSE),0) -> 388 | E19: =IFERROR(VLOOKUP($A19,[2]filtro.12!$A11:$H184,3,FALSE),0) -> 0 | F19: =IFERROR(VLOOKUP($A19,[2]filtro.12!$A11:$H184,4,FALSE),0) -> 385 | G19: =IFERROR(VLOOKUP($A19,[2]filtro.12!$A11:$H184,5,FALSE),0) -> 1,508
B20: TOTAL | D20: =SUM(D13:D19) -> 99,447 | E20: =SUM(E13:E19) -> 2 | F20: =SUM(F13:F19) -> 98,570 | G20: =SUM(G13:G19) -> 174,359
B22: SANGRE BIOQUÍMICO
A23: 80302005 | B23: 0302005 | C23: Ácido úrico, en sangre | D23: =IFERROR(VLOOKUP($A23,[2]filtro.12!$A15:$H188,2,FALSE),0) -> 33,889 | E23: =IFERROR(VLOOKUP($A23,[2]filtro.12!$A15:$H188,3,FALSE),0) -> 0 | F23: =IFERROR(VLOOKUP($A23,[2]filtro.12!$A15:$H188,4,FALSE),0) -> 33,871 | G23: =IFERROR(VLOOKUP($A23,[2]filtro.12!$A15:$H188,5,FALSE),0) -> 35,558
A24: 80302013 | B24: 0302013 | C24: Bilirrubina total y conjugada | D24: =IFERROR(VLOOKUP($A24,[2]filtro.12!$A16:$H189,2,FALSE),0) -> 660 | E24: =IFERROR(VLOOKUP($A24,[2]filtro.12!$A16:$H189,3,FALSE),0) -> 0 | F24: =IFERROR(VLOOKUP($A24,[2]filtro.12!$A16:$H189,4,FALSE),0) -> 631 | G24: =IFERROR(VLOOKUP($A24,[2]filtro.12!$A16:$H189,5,FALSE),0) -> 8,726
A25: 80302067 | B25: 0302067 | C25: Colesterol total (proc. aut.) | D25: =IFERROR(VLOOKUP($A25,[2]filtro.12!$A17:$H190,2,FALSE),0) -> 3,768 | E25: =IFERROR(VLOOKUP($A25,[2]filtro.12!$A17:$H190,3,FALSE),0) -> 0 | F25: =IFERROR(VLOOKUP($A25,[2]filtro.12!$A17:$H190,4,FALSE),0) -> 3,734 | G25: =IFERROR(VLOOKUP($A25,[2]filtro.12!$A17:$H190,5,FALSE),0) -> 46,917
A26: 80302068 | B26: 0302068 | C26: Colesterol HDL (proc. aut.) | D26: =IFERROR(VLOOKUP($A26,[2]filtro.12!$A18:$H191,2,FALSE),0) -> 1,749 | E26: =IFERROR(VLOOKUP($A26,[2]filtro.12!$A18:$H191,3,FALSE),0) -> 0 | F26: =IFERROR(VLOOKUP($A26,[2]filtro.12!$A18:$H191,4,FALSE),0) -> 1,723 | G26: =IFERROR(VLOOKUP($A26,[2]filtro.12!$A18:$H191,5,FALSE),0) -> 37,095
A27: 80302023 | B27: 0302023 | C27: Creatinina en sangre | D27: =IFERROR(VLOOKUP($A27,[2]filtro.12!$A19:$H192,2,FALSE),0) -> 57,974 | E27: =IFERROR(VLOOKUP($A27,[2]filtro.12!$A19:$H192,3,FALSE),0) -> 0 | F27: =IFERROR(VLOOKUP($A27,[2]filtro.12!$A19:$H192,4,FALSE),0) -> 57,438 | G27: =IFERROR(VLOOKUP($A27,[2]filtro.12!$A19:$H192,5,FALSE),0) -> 96,432
A28: 80302024 | B28: 0302024 | C28: Clearance de creatinina (proc.aut.) | D28: =IFERROR(VLOOKUP($A28,[2]filtro.12!$A20:$H193,2,FALSE),0) -> 2,456 | E28: =IFERROR(VLOOKUP($A28,[2]filtro.12!$A20:$H193,3,FALSE),0) -> 0 | F28: =IFERROR(VLOOKUP($A28,[2]filtro.12!$A20:$H193,4,FALSE),0) -> 2,456 | G28: =IFERROR(VLOOKUP($A28,[2]filtro.12!$A20:$H193,5,FALSE),0) -> 7,388
A29: 80302032 | B29: 0302032 | C29: Electrolitos plasmáticos (sodio, potasio, cloro) c/u | D29: =IFERROR(VLOOKUP($A29,[2]filtro.12!$A21:$H194,2,FALSE),0) -> 92,757 | E29: =IFERROR(VLOOKUP($A29,[2]filtro.12!$A21:$H194,3,FALSE),0) -> 0 | F29: =IFERROR(VLOOKUP($A29,[2]filtro.12!$A21:$H194,4,FALSE),0) -> 92,371 | G29: =IFERROR(VLOOKUP($A29,[2]filtro.12!$A21:$H194,5,FALSE),0) -> 83,561
A30: 80302034 | B30: 0302034 | C30: Perfil lipídico (incluye mediciones de colesterol total, HDL-colesterol y triglicéridos con estimaciones por fórmula de LDL-colesterol, VLDL-colesterol y colesterol no-HDL) | D30: =IFERROR(VLOOKUP($A30,[2]filtro.12!$A22:$H195,2,FALSE),0) -> 60,613 | E30: =IFERROR(VLOOKUP($A30,[2]filtro.12!$A22:$H195,3,FALSE),0) -> 0 | F30: =IFERROR(VLOOKUP($A30,[2]filtro.12!$A22:$H195,4,FALSE),0) -> 60,613 | G30: =IFERROR(VLOOKUP($A30,[2]filtro.12!$A22:$H195,5,FALSE),0) -> 71,715
A31: 80302035 | B31: 0302035 | C31: Fármacos y/o drogas; niveles plasmáticos de (alcohol, anorexígenos, antiarrítmicos, antibióticos, antidepresivos, antiepilépticos, antihistamínicos, antiinflamatorios y analgésicos, estimulantes respiratorios, tranquilizantes mayores y menores, etc.) c/u | D31: =IFERROR(VLOOKUP($A31,[2]filtro.12!$A23:$H196,2,FALSE),0) -> 609 | E31: =IFERROR(VLOOKUP($A31,[2]filtro.12!$A23:$H196,3,FALSE),0) -> 0 | F31: =IFERROR(VLOOKUP($A31,[2]filtro.12!$A23:$H196,4,FALSE),0) -> 609 | G31: =IFERROR(VLOOKUP($A31,[2]filtro.12!$A23:$H196,5,FALSE),0) -> 6,288
A32: 80302040 | B32: 0302040 | C32: Fosfatasas alcalinas totales | D32: =IFERROR(VLOOKUP($A32,[2]filtro.12!$A24:$H197,2,FALSE),0) -> 648 | E32: =IFERROR(VLOOKUP($A32,[2]filtro.12!$A24:$H197,3,FALSE),0) -> 0 | F32: =IFERROR(VLOOKUP($A32,[2]filtro.12!$A24:$H197,4,FALSE),0) -> 626 | G32: =IFERROR(VLOOKUP($A32,[2]filtro.12!$A24:$H197,5,FALSE),0) -> 7,543
A33: 80302047 | B33: 0302047 | C33: Glucosa en sangre | D33: =IFERROR(VLOOKUP($A33,[2]filtro.12!$A25:$H198,2,FALSE),0) -> 70,099 | E33: =IFERROR(VLOOKUP($A33,[2]filtro.12!$A25:$H198,3,FALSE),0) -> 0 | F33: =IFERROR(VLOOKUP($A33,[2]filtro.12!$A25:$H198,4,FALSE),0) -> 69,458 | G33: =IFERROR(VLOOKUP($A33,[2]filtro.12!$A25:$H198,5,FALSE),0) -> 118,279
A34: 80302048 | B34: 0302048 | C34: Glucosa, Prueba de Tolerancia a la Glucosa Oral (PTGO), (dos determinaciones) | D34: =IFERROR(VLOOKUP($A34,[2]filtro.12!$A26:$H199,2,FALSE),0) -> 5,320 | E34: =IFERROR(VLOOKUP($A34,[2]filtro.12!$A26:$H199,3,FALSE),0) -> 0 | F34: =IFERROR(VLOOKUP($A34,[2]filtro.12!$A26:$H199,4,FALSE),0) -> 5,252 | G34: =IFERROR(VLOOKUP($A34,[2]filtro.12!$A26:$H199,5,FALSE),0) -> 10,944
A35: 80302057 | B35: 0302057 | C35: Nitrógeno ureico y/o úrea en sangre | D35: =IFERROR(VLOOKUP($A35,[2]filtro.12!$A27:$H200,2,FALSE),0) -> 36,477 | E35: =IFERROR(VLOOKUP($A35,[2]filtro.12!$A27:$H200,3,FALSE),0) -> 0 | F35: =IFERROR(VLOOKUP($A35,[2]filtro.12!$A27:$H200,4,FALSE),0) -> 36,456 | G35: =IFERROR(VLOOKUP($A35,[2]filtro.12!$A27:$H200,5,FALSE),0) -> 43,470
A36: 80302075 | B36: 0302075 | C36: Perfil bioquímico (determinación automatizada de 12 parámetros) | D36: =IFERROR(VLOOKUP($A36,[2]filtro.12!$A28:$H201,2,FALSE),0) -> 443 | E36: =IFERROR(VLOOKUP($A36,[2]filtro.12!$A28:$H201,3,FALSE),0) -> 7 | F36: =IFERROR(VLOOKUP($A36,[2]filtro.12!$A28:$H201,4,FALSE),0) -> 436 | G36: =IFERROR(VLOOKUP($A36,[2]filtro.12!$A28:$H201,5,FALSE),0) -> 2,481
A37: 80302076 | B37: 0302076 | C37: Perfil Hepático (incluye tiempo de protrombina, bilirrubina total y conjugada, fosfatasas alcalinas totales, GGT, transaminasas GOT/AST y GPT/ALT) | D37: =IFERROR(VLOOKUP($A37,[2]filtro.12!$A29:$H202,2,FALSE),0) -> 31,763 | E37: =IFERROR(VLOOKUP($A37,[2]filtro.12!$A29:$H202,3,FALSE),0) -> 0 | F37: =IFERROR(VLOOKUP($A37,[2]filtro.12!$A29:$H202,4,FALSE),0) -> 31,763 | G37: =IFERROR(VLOOKUP($A37,[2]filtro.12!$A29:$H202,5,FALSE),0) -> 25,161
A38: 80302063 | B38: 0302063 | C38: Transaminasas, oxalacética (GOT/AST), Pirúvica (GPT/ALT), c/u | D38: =IFERROR(VLOOKUP($A38,[2]filtro.12!$A30:$H203,2,FALSE),0) -> 1,137 | E38: =IFERROR(VLOOKUP($A38,[2]filtro.12!$A30:$H203,3,FALSE),0) -> 0 | F38: =IFERROR(VLOOKUP($A38,[2]filtro.12!$A30:$H203,4,FALSE),0) -> 1,067 | G38: =IFERROR(VLOOKUP($A38,[2]filtro.12!$A30:$H203,5,FALSE),0) -> 18,659
A39: 80302064 | B39: 0302064 | C39: Triglicéridos en sangre (proc.aut.) | D39: =IFERROR(VLOOKUP($A39,[2]filtro.12!$A31:$H204,2,FALSE),0) -> 3,758 | E39: =IFERROR(VLOOKUP($A39,[2]filtro.12!$A31:$H204,3,FALSE),0) -> 0 | F39: =IFERROR(VLOOKUP($A39,[2]filtro.12!$A31:$H204,4,FALSE),0) -> 3,095 | G39: =IFERROR(VLOOKUP($A39,[2]filtro.12!$A31:$H204,5,FALSE),0) -> 41,936
A40: 82201011 | B40: 0302100 | C40: Proteínas totales en sangre | D40: =IFERROR(VLOOKUP($A40,[2]filtro.12!$A32:$H205,2,FALSE),0) -> 1,054 | E40: =IFERROR(VLOOKUP($A40,[2]filtro.12!$A32:$H205,3,FALSE),0) -> 0 | F40: =IFERROR(VLOOKUP($A40,[2]filtro.12!$A32:$H205,4,FALSE),0) -> 1,050 | G40: =IFERROR(VLOOKUP($A40,[2]filtro.12!$A32:$H205,5,FALSE),0) -> 1,631
A41: 82201012 | B41: 0302077 | C41: Vitamina B12 por inmunoensayo | D41: =IFERROR(VLOOKUP($A41,[2]filtro.12!$A33:$H206,2,FALSE),0) -> 1,692 | E41: =IFERROR(VLOOKUP($A41,[2]filtro.12!$A33:$H206,3,FALSE),0) -> 0 | F41: =IFERROR(VLOOKUP($A41,[2]filtro.12!$A33:$H206,4,FALSE),0) -> 1,689 | G41: =IFERROR(VLOOKUP($A41,[2]filtro.12!$A33:$H206,5,FALSE),0) -> 5,310
A42: 82201013 | B42: 0302101 | C42: Albúminas en sangre | D42: =IFERROR(VLOOKUP($A42,[2]filtro.12!$A34:$H207,2,FALSE),0) -> 684 | E42: =IFERROR(VLOOKUP($A42,[2]filtro.12!$A34:$H207,3,FALSE),0) -> 0 | F42: =IFERROR(VLOOKUP($A42,[2]filtro.12!$A34:$H207,4,FALSE),0) -> 684 | G42: =IFERROR(VLOOKUP($A42,[2]filtro.12!$A34:$H207,5,FALSE),0) -> 2,041
B43: TOTAL | D43: =SUM(D23:D42) -> 407,550 | E43: =SUM(E23:E42) -> 7 | F43: =SUM(F23:F42) -> 405,022 | G43: =SUM(G23:G42) -> 671,135
B45: EXÁMENES HORMONALES
A46: 80303024 | B46: 0303024 | C46: Tiroestimulante (TSH), hormona (adulto, niño o R.N.) | D46: =IFERROR(VLOOKUP($A46,[2]filtro.12!$A38:$H211,2,FALSE),0) -> 46,128 | E46: =IFERROR(VLOOKUP($A46,[2]filtro.12!$A38:$H211,3,FALSE),0) -> 0 | F46: =IFERROR(VLOOKUP($A46,[2]filtro.12!$A38:$H211,4,FALSE),0) -> 45,831 | G46: =IFERROR(VLOOKUP($A46,[2]filtro.12!$A38:$H211,5,FALSE),0) -> 83,533
A47: 80303026 | B47: 0303026 | C47: Tiroxina libre (T4L) | D47: =IFERROR(VLOOKUP($A47,[2]filtro.12!$A39:$H212,2,FALSE),0) -> 30,752 | E47: =IFERROR(VLOOKUP($A47,[2]filtro.12!$A39:$H212,3,FALSE),0) -> 0 | F47: =IFERROR(VLOOKUP($A47,[2]filtro.12!$A39:$H212,4,FALSE),0) -> 30,697 | G47: =IFERROR(VLOOKUP($A47,[2]filtro.12!$A39:$H212,5,FALSE),0) -> 29,348
A48: 80303027 | B48: 0303027 | C48: Tiroxina o tetrayodotironina (T4) | D48: =IFERROR(VLOOKUP($A48,[2]filtro.12!$A40:$H213,2,FALSE),0) -> 2,065 | E48: =IFERROR(VLOOKUP($A48,[2]filtro.12!$A40:$H213,3,FALSE),0) -> 0 | F48: =IFERROR(VLOOKUP($A48,[2]filtro.12!$A40:$H213,4,FALSE),0) -> 2,065 | G48: =IFERROR(VLOOKUP($A48,[2]filtro.12!$A40:$H213,5,FALSE),0) -> 54
B49: TOTAL | D49: =SUM(D46:D48) -> 78,945 | E49: =SUM(E46:E48) -> 0 | F49: =SUM(F46:F48) -> 78,593 | G49: =SUM(G46:G48) -> 112,935
B51: INMUNOLÓGICOS
A52: 80305019 | B52: 0305019 | C52: Factor reumatoídeo por técnica de látex u otras similares | D52: =IFERROR(VLOOKUP($A52,[2]filtro.12!$A44:$H217,2,FALSE),0) -> 2,088 | E52: =IFERROR(VLOOKUP($A52,[2]filtro.12!$A44:$H217,3,FALSE),0) -> 0 | F52: =IFERROR(VLOOKUP($A52,[2]filtro.12!$A44:$H217,4,FALSE),0) -> 2,087 | G52: =IFERROR(VLOOKUP($A52,[2]filtro.12!$A44:$H217,5,FALSE),0) -> 2,549
A53: 80305020 | B53: 0305020 | C53: Factor reumatoídeo por técnica Scat, Waaler Rose, nefelométricas y/o turbidimétricas | D53: =IFERROR(VLOOKUP($A53,[2]filtro.12!$A45:$H218,2,FALSE),0) -> 16 | E53: =IFERROR(VLOOKUP($A53,[2]filtro.12!$A45:$H218,3,FALSE),0) -> 0 | F53: =IFERROR(VLOOKUP($A53,[2]filtro.12!$A45:$H218,4,FALSE),0) -> 8 | G53: =IFERROR(VLOOKUP($A53,[2]filtro.12!$A45:$H218,5,FALSE),0) -> 466
B54: TOTAL | D54: =SUM(D52:D53) -> 2,104 | E54: =SUM(E52:E53) -> 0 | F54: =SUM(F52:F53) -> 2,095 | G54: =SUM(G52:G53) -> 3,015
B56: MICROBIOLÓGICOS
A57: 80306002 | B57: 0306002 | C57: Baciloscopia Ziehl-Neelsen, c/u | D57: =IFERROR(VLOOKUP($A57,[2]filtro.12!$A49:$H222,2,FALSE),0) -> 194 | E57: =IFERROR(VLOOKUP($A57,[2]filtro.12!$A49:$H222,3,FALSE),0) -> 13 | F57: =IFERROR(VLOOKUP($A57,[2]filtro.12!$A49:$H222,4,FALSE),0) -> 178 | G57: =IFERROR(VLOOKUP($A57,[2]filtro.12!$A49:$H222,5,FALSE),0) -> 1,017
A58: 80306004 | B58: 0306004 | C58: Examen directo al fresco, c/s tinción (incluye trichomonas) | D58: =IFERROR(VLOOKUP($A58,[2]filtro.12!$A50:$H223,2,FALSE),0) -> 1,081 | E58: =IFERROR(VLOOKUP($A58,[2]filtro.12!$A50:$H223,3,FALSE),0) -> 0 | F58: =IFERROR(VLOOKUP($A58,[2]filtro.12!$A50:$H223,4,FALSE),0) -> 1,081 | G58: =IFERROR(VLOOKUP($A58,[2]filtro.12!$A50:$H223,5,FALSE),0) -> 33
A59: 80306005 | B59: 0306005 | C59: Tinción de Gram | D59: =IFERROR(VLOOKUP($A59,[2]filtro.12!$A51:$H224,2,FALSE),0) -> 358 | E59: =IFERROR(VLOOKUP($A59,[2]filtro.12!$A51:$H224,3,FALSE),0) -> 0 | F59: =IFERROR(VLOOKUP($A59,[2]filtro.12!$A51:$H224,4,FALSE),0) -> 358 | G59: =IFERROR(VLOOKUP($A59,[2]filtro.12!$A51:$H224,5,FALSE),0) -> 32
A60: 80306007 | B60: 0306007 | C60: Coprocultivo, c/u | D60: =IFERROR(VLOOKUP($A60,[2]filtro.12!$A52:$H225,2,FALSE),0) -> 483 | E60: =IFERROR(VLOOKUP($A60,[2]filtro.12!$A52:$H225,3,FALSE),0) -> 6 | F60: =IFERROR(VLOOKUP($A60,[2]filtro.12!$A52:$H225,4,FALSE),0) -> 477 | G60: =IFERROR(VLOOKUP($A60,[2]filtro.12!$A52:$H225,5,FALSE),0) -> 1,084
A61: 80306011 | B61: 0306011 | C61: Urocultivo, recuento de colonias y antibiograma (cualquier técnica) | D61: =IFERROR(VLOOKUP($A61,[2]filtro.12!$A53:$H226,2,FALSE),0) -> 12,637 | E61: =IFERROR(VLOOKUP($A61,[2]filtro.12!$A53:$H226,3,FALSE),0) -> 21 | F61: =IFERROR(VLOOKUP($A61,[2]filtro.12!$A53:$H226,4,FALSE),0) -> 12,542 | G61: =IFERROR(VLOOKUP($A61,[2]filtro.12!$A53:$H226,5,FALSE),0) -> 19,231
A62: 80306016 | B62: 0306016 | C62: Neisseria gonorrhoeae (gonococo) | D62: =IFERROR(VLOOKUP($A62,[2]filtro.12!$A54:$H227,2,FALSE),0) -> 1 | E62: =IFERROR(VLOOKUP($A62,[2]filtro.12!$A54:$H227,3,FALSE),0) -> 0 | F62: =IFERROR(VLOOKUP($A62,[2]filtro.12!$A54:$H227,4,FALSE),0) -> 1 | G62: =IFERROR(VLOOKUP($A62,[2]filtro.12!$A54:$H227,5,FALSE),0) -> 81
A63: 80306026 | B63: 0306026 | C63: Antibiograma Corriente (mínimo 10 fármacos) (en caso de urocultivo no corresponde su cobro; incluido en el valor 03-06-011) | D63: =IFERROR(VLOOKUP($A63,[2]filtro.12!$A55:$H228,2,FALSE),0) -> 1,302 | E63: =IFERROR(VLOOKUP($A63,[2]filtro.12!$A55:$H228,3,FALSE),0) -> 0 | F63: =IFERROR(VLOOKUP($A63,[2]filtro.12!$A55:$H228,4,FALSE),0) -> 1,302 | G63: =IFERROR(VLOOKUP($A63,[2]filtro.12!$A55:$H228,5,FALSE),0) -> 331
A64: 80306038 | B64: 0306038 | C64: R.P.R. | D64: =IFERROR(VLOOKUP($A64,[2]filtro.12!$A56:$H229,2,FALSE),0) -> 9,684 | E64: =IFERROR(VLOOKUP($A64,[2]filtro.12!$A56:$H229,3,FALSE),0) -> 0 | F64: =IFERROR(VLOOKUP($A64,[2]filtro.12!$A56:$H229,4,FALSE),0) -> 9,680 | G64: =IFERROR(VLOOKUP($A64,[2]filtro.12!$A56:$H229,5,FALSE),0) -> 19,876
A65: 80306042 | B65: 0306042 | C65: V.D.R.L. | D65: =IFERROR(VLOOKUP($A65,[2]filtro.12!$A57:$H230,2,FALSE),0) -> 75 | E65: =IFERROR(VLOOKUP($A65,[2]filtro.12!$A57:$H230,3,FALSE),0) -> 0 | F65: =IFERROR(VLOOKUP($A65,[2]filtro.12!$A57:$H230,4,FALSE),0) -> 75 | G65: =IFERROR(VLOOKUP($A65,[2]filtro.12!$A57:$H230,5,FALSE),0) -> 1,019
A66: 80306051 | B66: 0306051 | C66: Graham, examen de (incluye diagnóstico de gusanos macroscópicos y examen microscópico de 5 muestras separadas) | D66: =IFERROR(VLOOKUP($A66,[2]filtro.12!$A58:$H231,2,FALSE),0) -> 278 | E66: =IFERROR(VLOOKUP($A66,[2]filtro.12!$A58:$H231,3,FALSE),0) -> 0 | F66: =IFERROR(VLOOKUP($A66,[2]filtro.12!$A58:$H231,4,FALSE),0) -> 277 | G66: =IFERROR(VLOOKUP($A66,[2]filtro.12!$A58:$H231,5,FALSE),0) -> 268
A67: 80306052 | B67: 0306052 | C67: Estudio de gusanos macroscópicos | D67: =IFERROR(VLOOKUP($A67,[2]filtro.12!$A59:$H232,2,FALSE),0) -> 3 | E67: =IFERROR(VLOOKUP($A67,[2]filtro.12!$A59:$H232,3,FALSE),0) -> 0 | F67: =IFERROR(VLOOKUP($A67,[2]filtro.12!$A59:$H232,4,FALSE),0) -> 3 | G67: =IFERROR(VLOOKUP($A67,[2]filtro.12!$A59:$H232,5,FALSE),0) -> 79
A68: 80306048 | B68: 0306048 | C68: Coproparasitológico seriado simple (incluye diagnóstico de gusanos macroscópicos y examen microscópico por concentración de tres muestras separadas método Telemann ) (proc. aut.) | D68: =IFERROR(VLOOKUP($A68,[2]filtro.12!$A60:$H233,2,FALSE),0) -> 465 | E68: =IFERROR(VLOOKUP($A68,[2]filtro.12!$A60:$H233,3,FALSE),0) -> 0 | F68: =IFERROR(VLOOKUP($A68,[2]filtro.12!$A60:$H233,4,FALSE),0) -> 464 | G68: =IFERROR(VLOOKUP($A68,[2]filtro.12!$A60:$H233,5,FALSE),0) -> 1,074
A69: 80306059 | B69: 0306059 | C69: Coproparasitológico seriado simple (incluye diagnóstico de gusanos macroscópicos y examen microscópico por concentración de tres muestras separadas método PAFS (proc. aut.) | D69: =IFERROR(VLOOKUP($A69,[2]filtro.12!$A61:$H234,2,FALSE),0) -> 298 | E69: =IFERROR(VLOOKUP($A69,[2]filtro.12!$A61:$H234,3,FALSE),0) -> 0 | F69: =IFERROR(VLOOKUP($A69,[2]filtro.12!$A61:$H234,4,FALSE),0) -> 296 | G69: =IFERROR(VLOOKUP($A69,[2]filtro.12!$A61:$H234,5,FALSE),0) -> 197
A70: 80306169 | B70: 0306169 | C70: Anticuerpos virales, determ. de H.I.V. | D70: =IFERROR(VLOOKUP($A70,[2]filtro.12!$A62:$H235,2,FALSE),0) -> 237 | E70: =IFERROR(VLOOKUP($A70,[2]filtro.12!$A62:$H235,3,FALSE),0) -> 0 | F70: =IFERROR(VLOOKUP($A70,[2]filtro.12!$A62:$H235,4,FALSE),0) -> 237 | G70: =IFERROR(VLOOKUP($A70,[2]filtro.12!$A62:$H235,5,FALSE),0) -> 2,050
A71: 80306081 | B71: 0306081 | C71: Virus hepatitis C, anticuerpos de (anti HCV) | D71: =IFERROR(VLOOKUP($A71,[2]filtro.12!$A63:$H236,2,FALSE),0) -> 9 | E71: =IFERROR(VLOOKUP($A71,[2]filtro.12!$A63:$H236,3,FALSE),0) -> 0 | F71: =IFERROR(VLOOKUP($A71,[2]filtro.12!$A63:$H236,4,FALSE),0) -> 9 | G71: =IFERROR(VLOOKUP($A71,[2]filtro.12!$A63:$H236,5,FALSE),0) -> 31
A72: 80306112 | B72: 0306112 | C72: VIH, anticuerpos y antígenos virales, determ. de H.I.V. | D72: =IFERROR(VLOOKUP($A72,[2]filtro.12!$A64:$H237,2,FALSE),0) -> 89 | E72: =IFERROR(VLOOKUP($A72,[2]filtro.12!$A64:$H237,3,FALSE),0) -> 0 | F72: =IFERROR(VLOOKUP($A72,[2]filtro.12!$A64:$H237,4,FALSE),0) -> 89 | G72: =IFERROR(VLOOKUP($A72,[2]filtro.12!$A64:$H237,5,FALSE),0) -> 534
B73: TOTAL | D73: =SUM(D57:D72) -> 27,194 | E73: =SUM(E57:E72) -> 40 | F73: =SUM(F57:F72) -> 27,069 | G73: =SUM(G57:G72) -> 46,937
B75: EXÁMENES DE DEPOSICIONES, EXUDADOS, SECRECIONES Y OTROS LÍQUIDOS
A76: 80308004 | B76: 0308004 | C76: Hemorragias ocultas, (bencidina, guayaco o test de Weber y similares), cualquier método, c/muestra | D76: =IFERROR(VLOOKUP($A76,[2]filtro.12!$A68:$H241,2,FALSE),0) -> 318 | E76: =IFERROR(VLOOKUP($A76,[2]filtro.12!$A68:$H241,3,FALSE),0) -> 0 | F76: =IFERROR(VLOOKUP($A76,[2]filtro.12!$A68:$H241,4,FALSE),0) -> 317 | G76: =IFERROR(VLOOKUP($A76,[2]filtro.12!$A68:$H241,5,FALSE),0) -> 1,666
A77: 80308005 | B77: 0308005 | C77: Leucocitos fecales | D77: =IFERROR(VLOOKUP($A77,[2]filtro.12!$A69:$H242,2,FALSE),0) -> 162 | E77: =IFERROR(VLOOKUP($A77,[2]filtro.12!$A69:$H242,3,FALSE),0) -> 0 | F77: =IFERROR(VLOOKUP($A77,[2]filtro.12!$A69:$H242,4,FALSE),0) -> 162 | G77: =IFERROR(VLOOKUP($A77,[2]filtro.12!$A69:$H242,5,FALSE),0) -> 248
B78: TOTAL | D78: =SUM(D76:D77) -> 480 | E78: =SUM(E76:E77) -> 0 | F78: =SUM(F76:F77) -> 479 | G78: =SUM(G76:G77) -> 1,914
B80: EXÁMENES DE ORINA
A81: 80309010 | B81: 0309010 | C81: Creatinina cuantitativa en orina | D81: =IFERROR(VLOOKUP($A81,[2]filtro.12!$A73:$H246,2,FALSE),0) -> 38,446 | E81: =IFERROR(VLOOKUP($A81,[2]filtro.12!$A73:$H246,3,FALSE),0) -> 0 | F81: =IFERROR(VLOOKUP($A81,[2]filtro.12!$A73:$H246,4,FALSE),0) -> 38,118 | G81: =IFERROR(VLOOKUP($A81,[2]filtro.12!$A73:$H246,5,FALSE),0) -> 40,073
A82: 80309013 | B82: 0309013 | C82: Microalbuminuria cuantitativa | D82: =IFERROR(VLOOKUP($A82,[2]filtro.12!$A74:$H247,2,FALSE),0) -> 39,596 | E82: =IFERROR(VLOOKUP($A82,[2]filtro.12!$A74:$H247,3,FALSE),0) -> 0 | F82: =IFERROR(VLOOKUP($A82,[2]filtro.12!$A74:$H247,4,FALSE),0) -> 39,596 | G82: =IFERROR(VLOOKUP($A82,[2]filtro.12!$A74:$H247,5,FALSE),0) -> 43,152
A83: 80309014 | B83: 0309014 | C83: Gonadotrofina coriónica, sub-unidad beta en orina (test rápido) | D83: =IFERROR(VLOOKUP($A83,[2]filtro.12!$A75:$H248,2,FALSE),0) -> 129 | E83: =IFERROR(VLOOKUP($A83,[2]filtro.12!$A75:$H248,3,FALSE),0) -> 0 | F83: =IFERROR(VLOOKUP($A83,[2]filtro.12!$A75:$H248,4,FALSE),0) -> 129 | G83: =IFERROR(VLOOKUP($A83,[2]filtro.12!$A75:$H248,5,FALSE),0) -> 179
A84: 80309020 | B84: 0309020 | C84: Nitrógeno ureico o urea en orina (cuantitativo) | D84: =IFERROR(VLOOKUP($A84,[2]filtro.12!$A76:$H249,2,FALSE),0) -> 594 | E84: =IFERROR(VLOOKUP($A84,[2]filtro.12!$A76:$H249,3,FALSE),0) -> 0 | F84: =IFERROR(VLOOKUP($A84,[2]filtro.12!$A76:$H249,4,FALSE),0) -> 594 | G84: =IFERROR(VLOOKUP($A84,[2]filtro.12!$A76:$H249,5,FALSE),0) -> 1,789
A85: 80309022 | B85: 0309022 | C85: Orina completa, (incluye cód. 03-09-023 y 03-09-024) | D85: =IFERROR(VLOOKUP($A85,[2]filtro.12!$A77:$H250,2,FALSE),0) -> 50,984 | E85: =IFERROR(VLOOKUP($A85,[2]filtro.12!$A77:$H250,3,FALSE),0) -> 57 | F85: =IFERROR(VLOOKUP($A85,[2]filtro.12!$A77:$H250,4,FALSE),0) -> 50,454 | G85: =IFERROR(VLOOKUP($A85,[2]filtro.12!$A77:$H250,5,FALSE),0) -> 91,724
A86: 80309023 | B86: 0309023 | C86: Orina, físicoquímico (aspecto, color, densidad, pH, proteínas, glucosa, cuerpos cetónicos, urobilinógeno, bilirrubina, hemoglobina y nitritos) todos o cada uno de los parámetros (proc. aut.) | D86: =IFERROR(VLOOKUP($A86,[2]filtro.12!$A78:$H251,2,FALSE),0) -> 12,349 | E86: =IFERROR(VLOOKUP($A86,[2]filtro.12!$A78:$H251,3,FALSE),0) -> 5,188 | F86: =IFERROR(VLOOKUP($A86,[2]filtro.12!$A78:$H251,4,FALSE),0) -> 7,161 | G86: =IFERROR(VLOOKUP($A86,[2]filtro.12!$A78:$H251,5,FALSE),0) -> 1,533
A87: 80309024 | B87: 0309024 | C87: Sedimento de orina (proc. aut.) | D87: =IFERROR(VLOOKUP($A87,[2]filtro.12!$A79:$H252,2,FALSE),0) -> 502 | E87: =IFERROR(VLOOKUP($A87,[2]filtro.12!$A79:$H252,3,FALSE),0) -> 0 | F87: =IFERROR(VLOOKUP($A87,[2]filtro.12!$A79:$H252,4,FALSE),0) -> 502 | G87: =IFERROR(VLOOKUP($A87,[2]filtro.12!$A79:$H252,5,FALSE),0) -> 8,582
B88: TOTAL | D88: =SUM(D81:D87) -> 142,600 | E88: =SUM(E81:E87) -> 5,245 | F88: =SUM(F81:F87) -> 136,554 | G88: =SUM(G81:G87) -> 187,032
B89: TOTAL EXÁMENES | D89: =+D20+D43+D49+D54+D73+D78+D88 -> 758,320 | E89: =+E20+E43+E49+E54+E73+E78+E88 -> 5,294 | F89: =+F20+F43+F49+F54+F73+F78+F88 -> 748,382 | G89: =+G20+G43+G49+G54+G73+G78+G88 -> 1,197,327
B91: EXÁMENES RADIOLÓGICOS
A92: 80401004 | B92: 0401004 | C92: Radiografía de tórax, proyección complementaria (oblicuas, selectivas u otras) | D92: =IFERROR(VLOOKUP($A92,[2]filtro.12!$A84:$H257,2,FALSE),0) -> 0 | E92: =IFERROR(VLOOKUP($A92,[2]filtro.12!$A84:$H257,3,FALSE),0) -> 0 | F92: =IFERROR(VLOOKUP($A92,[2]filtro.12!$A84:$H257,4,FALSE),0) -> 0 | G92: =IFERROR(VLOOKUP($A92,[2]filtro.12!$A84:$H257,5,FALSE),0) -> 0
A93: 80401008 | B93: 0401008 | C93: Radiografía de tórax frontal o lateral con equipo móvil fuera del departamento de rayos. | D93: =IFERROR(VLOOKUP($A93,[2]filtro.12!$A85:$H258,2,FALSE),0) -> 4 | E93: =IFERROR(VLOOKUP($A93,[2]filtro.12!$A85:$H258,3,FALSE),0) -> 0 | F93: =IFERROR(VLOOKUP($A93,[2]filtro.12!$A85:$H258,4,FALSE),0) -> 4 | G93: =IFERROR(VLOOKUP($A93,[2]filtro.12!$A85:$H258,5,FALSE),0) -> 129
A94: 80401009 | B94: 0401009 | C94: Radiografía de tórax simple frontal o lateral | D94: =IFERROR(VLOOKUP($A94,[2]filtro.12!$A86:$H259,2,FALSE),0) -> 1,011 | E94: =IFERROR(VLOOKUP($A94,[2]filtro.12!$A86:$H259,3,FALSE),0) -> 829 | F94: =IFERROR(VLOOKUP($A94,[2]filtro.12!$A86:$H259,4,FALSE),0) -> 182 | G94: =IFERROR(VLOOKUP($A94,[2]filtro.12!$A86:$H259,5,FALSE),0) -> 710
A95: 80401070 | B95: 0401070 | C95: Radiografía de tórax frontal y lateral | D95: =IFERROR(VLOOKUP($A95,[2]filtro.12!$A87:$H260,2,FALSE),0) -> 11,580 | E95: =IFERROR(VLOOKUP($A95,[2]filtro.12!$A87:$H260,3,FALSE),0) -> 9,917 | F95: =IFERROR(VLOOKUP($A95,[2]filtro.12!$A87:$H260,4,FALSE),0) -> 1,663 | G95: =IFERROR(VLOOKUP($A95,[2]filtro.12!$A87:$H260,5,FALSE),0) -> 7,333
A96: 80401010 | B96: 0401010 | C96: Mamografía bilateral | D96: =IFERROR(VLOOKUP($A96,[2]filtro.12!$A88:$H261,2,FALSE),0) -> 1,703 | E96: =IFERROR(VLOOKUP($A96,[2]filtro.12!$A88:$H261,3,FALSE),0) -> 0 | F96: =IFERROR(VLOOKUP($A96,[2]filtro.12!$A88:$H261,4,FALSE),0) -> 1,703 | G96: =IFERROR(VLOOKUP($A96,[2]filtro.12!$A88:$H261,5,FALSE),0) -> 3,601
A97: 80401110 | B97: 0401110 | C97: Mamografía unilateral | D97: =IFERROR(VLOOKUP($A97,[2]filtro.12!$A89:$H262,2,FALSE),0) -> 308 | E97: =IFERROR(VLOOKUP($A97,[2]filtro.12!$A89:$H262,3,FALSE),0) -> 0 | F97: =IFERROR(VLOOKUP($A97,[2]filtro.12!$A89:$H262,4,FALSE),0) -> 308 | G97: =IFERROR(VLOOKUP($A97,[2]filtro.12!$A89:$H262,5,FALSE),0) -> 381
A98: 80401130 | B98: 0401130 | C98: Mamografía proyección complementaria (axilar u otras) | D98: =IFERROR(VLOOKUP($A98,[2]filtro.12!$A90:$H263,2,FALSE),0) -> 2 | E98: =IFERROR(VLOOKUP($A98,[2]filtro.12!$A90:$H263,3,FALSE),0) -> 0 | F98: =IFERROR(VLOOKUP($A98,[2]filtro.12!$A90:$H263,4,FALSE),0) -> 2 | G98: =IFERROR(VLOOKUP($A98,[2]filtro.12!$A90:$H263,5,FALSE),0) -> 0
A99: 80401042 | B99: 0401042 | C99: Radiografía de columna cervical o atlas-axis (frontal y lateral) | D99: =IFERROR(VLOOKUP($A99,[2]filtro.12!$A91:$H264,2,FALSE),0) -> 1,321 | E99: =IFERROR(VLOOKUP($A99,[2]filtro.12!$A91:$H264,3,FALSE),0) -> 1,321 | F99: =IFERROR(VLOOKUP($A99,[2]filtro.12!$A91:$H264,4,FALSE),0) -> 0 | G99: =IFERROR(VLOOKUP($A99,[2]filtro.12!$A91:$H264,5,FALSE),0) -> 336
A100: 80401043 | B100: 0401043 | C100: Radiografía de columna cervical (frontal, lateral y oblicuas) | D100: =IFERROR(VLOOKUP($A100,[2]filtro.12!$A92:$H265,2,FALSE),0) -> 13 | E100: =IFERROR(VLOOKUP($A100,[2]filtro.12!$A92:$H265,3,FALSE),0) -> 13 | F100: =IFERROR(VLOOKUP($A100,[2]filtro.12!$A92:$H265,4,FALSE),0) -> 0 | G100: =IFERROR(VLOOKUP($A100,[2]filtro.12!$A92:$H265,5,FALSE),0) -> 11
A101: 80401044 | B101: 0401044 | C101: Radiografía de columna cervical flexión y extensión (Dinámicas) | D101: =IFERROR(VLOOKUP($A101,[2]filtro.12!$A93:$H266,2,FALSE),0) -> 2 | E101: =IFERROR(VLOOKUP($A101,[2]filtro.12!$A93:$H266,3,FALSE),0) -> 2 | F101: =IFERROR(VLOOKUP($A101,[2]filtro.12!$A93:$H266,4,FALSE),0) -> 0 | G101: =IFERROR(VLOOKUP($A101,[2]filtro.12!$A93:$H266,5,FALSE),0) -> 2
A102: 80401045 | B102: 0401045 | C102: Radiografía de columna dorsal o dorsolumbar localizada, parrilla costal adultos (frontal y lateral). | D102: =IFERROR(VLOOKUP($A102,[2]filtro.12!$A94:$H267,2,FALSE),0) -> 2,222 | E102: =IFERROR(VLOOKUP($A102,[2]filtro.12!$A94:$H267,3,FALSE),0) -> 2,222 | F102: =IFERROR(VLOOKUP($A102,[2]filtro.12!$A94:$H267,4,FALSE),0) -> 0 | G102: =IFERROR(VLOOKUP($A102,[2]filtro.12!$A94:$H267,5,FALSE),0) -> 573
A103: 80401046 | B103: 0401046 | C103: Radiografía columna lumbar o lumbosacra | D103: =IFERROR(VLOOKUP($A103,[2]filtro.12!$A95:$H268,2,FALSE),0) -> 1,263 | E103: =IFERROR(VLOOKUP($A103,[2]filtro.12!$A95:$H268,3,FALSE),0) -> 1,263 | F103: =IFERROR(VLOOKUP($A103,[2]filtro.12!$A95:$H268,4,FALSE),0) -> 0 | G103: =IFERROR(VLOOKUP($A103,[2]filtro.12!$A95:$H268,5,FALSE),0) -> 412
A104: 80401047 | B104: 0401047 | C104: Radiografía columna lumbar o lumbosacra flexión y extensión (Dinámicas) | D104: =IFERROR(VLOOKUP($A104,[2]filtro.12!$A96:$H269,2,FALSE),0) -> 18 | E104: =IFERROR(VLOOKUP($A104,[2]filtro.12!$A96:$H269,3,FALSE),0) -> 18 | F104: =IFERROR(VLOOKUP($A104,[2]filtro.12!$A96:$H269,4,FALSE),0) -> 0 | G104: =IFERROR(VLOOKUP($A104,[2]filtro.12!$A96:$H269,5,FALSE),0) -> 0
A105: 80401048 | B105: 0401048 | C105: Radiografía columna lumbar o lumbosacra, oblicuas adicionales | D105: =IFERROR(VLOOKUP($A105,[2]filtro.12!$A97:$H270,2,FALSE),0) -> 6 | E105: =IFERROR(VLOOKUP($A105,[2]filtro.12!$A97:$H270,3,FALSE),0) -> 6 | F105: =IFERROR(VLOOKUP($A105,[2]filtro.12!$A97:$H270,4,FALSE),0) -> 0 | G105: =IFERROR(VLOOKUP($A105,[2]filtro.12!$A97:$H270,5,FALSE),0) -> 4
A106: 80401049 | B106: 0401049 | C106: Radiografía de columna total, panorámica con folio graduado frontal o lateral | D106: =IFERROR(VLOOKUP($A106,[2]filtro.12!$A98:$H271,2,FALSE),0) -> 0 | E106: =IFERROR(VLOOKUP($A106,[2]filtro.12!$A98:$H271,3,FALSE),0) -> 0 | F106: =IFERROR(VLOOKUP($A106,[2]filtro.12!$A98:$H271,4,FALSE),0) -> 0 | G106: =IFERROR(VLOOKUP($A106,[2]filtro.12!$A98:$H271,5,FALSE),0) -> 0
A107: 80401051 | B107: 0401051 | C107: Radiografía de pelvis, cadera o coxofemoral | D107: =IFERROR(VLOOKUP($A107,[2]filtro.12!$A99:$H272,2,FALSE),0) -> 2,081 | E107: =IFERROR(VLOOKUP($A107,[2]filtro.12!$A99:$H272,3,FALSE),0) -> 2,070 | F107: =IFERROR(VLOOKUP($A107,[2]filtro.12!$A99:$H272,4,FALSE),0) -> 11 | G107: =IFERROR(VLOOKUP($A107,[2]filtro.12!$A99:$H272,5,FALSE),0) -> 7,255
A108: 80401151 | B108: 0401151 | C108: Radiografía de pelvis, cadera o coxofemoral de RN, lactante o niño menor de 6 años. | D108: =IFERROR(VLOOKUP($A108,[2]filtro.12!$A100:$H273,2,FALSE),0) -> 1,347 | E108: =IFERROR(VLOOKUP($A108,[2]filtro.12!$A100:$H273,3,FALSE),0) -> 706 | F108: =IFERROR(VLOOKUP($A108,[2]filtro.12!$A100:$H273,4,FALSE),0) -> 641 | G108: =IFERROR(VLOOKUP($A108,[2]filtro.12!$A100:$H273,5,FALSE),0) -> 1,886
A109: 80401052 | B109: 0401052 | C109: Radiografía de pelvis, cadera o coxofemoral, proyecciones especiales; (rotación interna, abducción, lateral, Lawenstein u otras) | D109: =IFERROR(VLOOKUP($A109,[2]filtro.12!$A101:$H274,2,FALSE),0) -> 431 | E109: =IFERROR(VLOOKUP($A109,[2]filtro.12!$A101:$H274,3,FALSE),0) -> 386 | F109: =IFERROR(VLOOKUP($A109,[2]filtro.12!$A101:$H274,4,FALSE),0) -> 45 | G109: =IFERROR(VLOOKUP($A109,[2]filtro.12!$A101:$H274,5,FALSE),0) -> 314
A110: 80401053 | B110: 0401053 | C110: Radiografía de Sacrocoxis o articulaciones sacroilíacas. | D110: =IFERROR(VLOOKUP($A110,[2]filtro.12!$A102:$H275,2,FALSE),0) -> 283 | E110: =IFERROR(VLOOKUP($A110,[2]filtro.12!$A102:$H275,3,FALSE),0) -> 283 | F110: =IFERROR(VLOOKUP($A110,[2]filtro.12!$A102:$H275,4,FALSE),0) -> 0 | G110: =IFERROR(VLOOKUP($A110,[2]filtro.12!$A102:$H275,5,FALSE),0) -> 62
A111: 80401054 | B111: 0401054 | C111: Radiografía de brazo, antebrazo, codo, muñeca, mano, dedos, pie (frontal y lateral) | D111: =IFERROR(VLOOKUP($A111,[2]filtro.12!$A103:$H276,2,FALSE),0) -> 13,023 | E111: =IFERROR(VLOOKUP($A111,[2]filtro.12!$A103:$H276,3,FALSE),0) -> 13,023 | F111: =IFERROR(VLOOKUP($A111,[2]filtro.12!$A103:$H276,4,FALSE),0) -> 0 | G111: =IFERROR(VLOOKUP($A111,[2]filtro.12!$A103:$H276,5,FALSE),0) -> 3,548
A112: 80401055 | B112: 0401055 | C112: Radiografía de clavícula. | D112: =IFERROR(VLOOKUP($A112,[2]filtro.12!$A104:$H277,2,FALSE),0) -> 223 | E112: =IFERROR(VLOOKUP($A112,[2]filtro.12!$A104:$H277,3,FALSE),0) -> 223 | F112: =IFERROR(VLOOKUP($A112,[2]filtro.12!$A104:$H277,4,FALSE),0) -> 0 | G112: =IFERROR(VLOOKUP($A112,[2]filtro.12!$A104:$H277,5,FALSE),0) -> 63
A113: 80401060 | B113: 0401060 | C113: Radiografía de hombro, fémur, rodilla, pierna, costilla o esternón Frontal y Lateral | D113: =IFERROR(VLOOKUP($A113,[2]filtro.12!$A105:$H278,2,FALSE),0) -> 6,396 | E113: =IFERROR(VLOOKUP($A113,[2]filtro.12!$A105:$H278,3,FALSE),0) -> 6,372 | F113: =IFERROR(VLOOKUP($A113,[2]filtro.12!$A105:$H278,4,FALSE),0) -> 24 | G113: =IFERROR(VLOOKUP($A113,[2]filtro.12!$A105:$H278,5,FALSE),0) -> 8,667
A114: 80404002 | B114: 0404002 | C114: Ecografía obstétrica | D114: =IFERROR(VLOOKUP($A114,[2]filtro.12!$A106:$H279,2,FALSE),0) -> 3,590 | E114: =IFERROR(VLOOKUP($A114,[2]filtro.12!$A106:$H279,3,FALSE),0) -> 0 | F114: =IFERROR(VLOOKUP($A114,[2]filtro.12!$A106:$H279,4,FALSE),0) -> 3,590 | G114: =IFERROR(VLOOKUP($A114,[2]filtro.12!$A106:$H279,5,FALSE),0) -> 23
A115: 80404005 | B115: 0404005 | C115: Ecografía transvaginal o transrectal | D115: =IFERROR(VLOOKUP($A115,[2]filtro.12!$A107:$H280,2,FALSE),0) -> 493 | E115: =IFERROR(VLOOKUP($A115,[2]filtro.12!$A107:$H280,3,FALSE),0) -> 0 | F115: =IFERROR(VLOOKUP($A115,[2]filtro.12!$A107:$H280,4,FALSE),0) -> 493 | G115: =IFERROR(VLOOKUP($A115,[2]filtro.12!$A107:$H280,5,FALSE),0) -> 0
A116: 80404006 | B116: 0404006 | C116: Ecografía ginecológica, pelviana femenina u obstétrica con estudio fetal | D116: =IFERROR(VLOOKUP($A116,[2]filtro.12!$A108:$H281,2,FALSE),0) -> 468 | E116: =IFERROR(VLOOKUP($A116,[2]filtro.12!$A108:$H281,3,FALSE),0) -> 0 | F116: =IFERROR(VLOOKUP($A116,[2]filtro.12!$A108:$H281,4,FALSE),0) -> 468 | G116: =IFERROR(VLOOKUP($A116,[2]filtro.12!$A108:$H281,5,FALSE),0) -> 0
A117: 80404007 | B117: 0404007 | C117: Ecografía transvaginal para seguimiento de ovulación, procedimiento completo (6-8 sesiones ) | D117: =IFERROR(VLOOKUP($A117,[2]filtro.12!$A109:$H282,2,FALSE),0) -> 0 | E117: =IFERROR(VLOOKUP($A117,[2]filtro.12!$A109:$H282,3,FALSE),0) -> 0 | F117: =IFERROR(VLOOKUP($A117,[2]filtro.12!$A109:$H282,4,FALSE),0) -> 0 | G117: =IFERROR(VLOOKUP($A117,[2]filtro.12!$A109:$H282,5,FALSE),0) -> 0
A118: 80404008 | B118: 0404008 | C118: Ecografía para seguimiento de ovulación, procedimiento completo (6 a 8 sesiones) | D118: =IFERROR(VLOOKUP($A118,[2]filtro.12!$A110:$H283,2,FALSE),0) -> 0 | E118: =IFERROR(VLOOKUP($A118,[2]filtro.12!$A110:$H283,3,FALSE),0) -> 0 | F118: =IFERROR(VLOOKUP($A118,[2]filtro.12!$A110:$H283,4,FALSE),0) -> 0 | G118: =IFERROR(VLOOKUP($A118,[2]filtro.12!$A110:$H283,5,FALSE),0) -> 0
B120: SECCIÓN B: PROCEDIMIENTOS E INTERVENCIONES QUIRÚRGICAS DE APOYO CLÍNICO Y TERAPÉUTICO
B121: CÓDIGOS | C121: PROCEDIMIENTOS | D121: Total | E121: SAPU/SAR/SUR | F121: Resto Establecimientos APS | G121: Compra de Servicios
B123: OTORRINOLARINGOLOGÍA
A124: 81301025 | B124: 1301025 | C124: Taponamiento nasal anterior (proc. aut.) | D124: =IFERROR(VLOOKUP($A124,[2]filtro.12!$A116:$H289,2,FALSE),0) -> 334 | E124: =IFERROR(VLOOKUP($A124,[2]filtro.12!$A116:$H289,3,FALSE),0) -> 136 | F124: =IFERROR(VLOOKUP($A124,[2]filtro.12!$A116:$H289,4,FALSE),0) -> 198 | G124: =IFERROR(VLOOKUP($A124,[2]filtro.12!$A116:$H289,5,FALSE),0) -> 0
A125: 81301026 | B125: 1301026 | C125: Taponamiento nasal posterior | D125: =IFERROR(VLOOKUP($A125,[2]filtro.12!$A117:$H290,2,FALSE),0) -> 107 | E125: =IFERROR(VLOOKUP($A125,[2]filtro.12!$A117:$H290,3,FALSE),0) -> 8 | F125: =IFERROR(VLOOKUP($A125,[2]filtro.12!$A117:$H290,4,FALSE),0) -> 99 | G125: =IFERROR(VLOOKUP($A125,[2]filtro.12!$A117:$H290,5,FALSE),0) -> 0
A126: 81301029 | B126: 1301029 | C126: Cuerpo extraño en fosas nasales, extracción de: - En adultos | D126: =IFERROR(VLOOKUP($A126,[2]filtro.12!$A118:$H291,2,FALSE),0) -> 28 | E126: =IFERROR(VLOOKUP($A126,[2]filtro.12!$A118:$H291,3,FALSE),0) -> 20 | F126: =IFERROR(VLOOKUP($A126,[2]filtro.12!$A118:$H291,4,FALSE),0) -> 8 | G126: =IFERROR(VLOOKUP($A126,[2]filtro.12!$A118:$H291,5,FALSE),0) -> 0
A127: 81301030 | B127: 1301030 | C127: Cuerpo extraño en fosas nasales, extracción de: - En niños | D127: =IFERROR(VLOOKUP($A127,[2]filtro.12!$A119:$H292,2,FALSE),0) -> 163 | E127: =IFERROR(VLOOKUP($A127,[2]filtro.12!$A119:$H292,3,FALSE),0) -> 14 | F127: =IFERROR(VLOOKUP($A127,[2]filtro.12!$A119:$H292,4,FALSE),0) -> 149 | G127: =IFERROR(VLOOKUP($A127,[2]filtro.12!$A119:$H292,5,FALSE),0) -> 0
B128: TOTAL | D128: =SUM(D124:D127) -> 632 | E128: =SUM(E124:E127) -> 178 | F128: =SUM(F124:F127) -> 454
B130: DERMATOLOGÍA, TEGUMENTOS E INTERVENCIONES QUIRÚRGICAS MENORES
A131: 81601110 | B131: 1601110 | C131: Curetaje de lesiones virales y similares hasta 10 lesiones por sesión | D131: =IFERROR(VLOOKUP($A131,[2]filtro.12!$A123:$H296,2,FALSE),0) -> 113 | E131: =IFERROR(VLOOKUP($A131,[2]filtro.12!$A123:$H296,3,FALSE),0) -> 6 | F131: =IFERROR(VLOOKUP($A131,[2]filtro.12!$A123:$H296,4,FALSE),0) -> 107 | G131: =IFERROR(VLOOKUP($A131,[2]filtro.12!$A123:$H296,5,FALSE),0) -> 2
A132: 81602203 | B132: 1602203 | C132: Resto del cuerpo hasta 3 lesiones: extirpación, reparación o biopsia, total o parcial, de lesiones benignas cutáneas por excisión | D132: =IFERROR(VLOOKUP($A132,[2]filtro.12!$A124:$H297,2,FALSE),0) -> 77 | E132: =IFERROR(VLOOKUP($A132,[2]filtro.12!$A124:$H297,3,FALSE),0) -> 7 | F132: =IFERROR(VLOOKUP($A132,[2]filtro.12!$A124:$H297,4,FALSE),0) -> 70 | G132: =IFERROR(VLOOKUP($A132,[2]filtro.12!$A124:$H297,5,FALSE),0) -> 18
A133: 81602206 | B133: 1602206 | C133: Extirpación de lesiones benignas por sec tangencial, curetaje, y/o fulguración hasta 15 lesiones | D133: =IFERROR(VLOOKUP($A133,[2]filtro.12!$A125:$H298,2,FALSE),0) -> 241 | E133: =IFERROR(VLOOKUP($A133,[2]filtro.12!$A125:$H298,3,FALSE),0) -> 0 | F133: =IFERROR(VLOOKUP($A133,[2]filtro.12!$A125:$H298,4,FALSE),0) -> 241 | G133: =IFERROR(VLOOKUP($A133,[2]filtro.12!$A125:$H298,5,FALSE),0) -> 205
A134: 81602221 | B134: 1602221 | C134: Herida cortante o contusa complicada, reparación y sutura (más de 5 cm) | D134: =IFERROR(VLOOKUP($A134,[2]filtro.12!$A126:$H299,2,FALSE),0) -> 1,250 | E134: =IFERROR(VLOOKUP($A134,[2]filtro.12!$A126:$H299,3,FALSE),0) -> 1,087 | F134: =IFERROR(VLOOKUP($A134,[2]filtro.12!$A126:$H299,4,FALSE),0) -> 163 | G134: =IFERROR(VLOOKUP($A134,[2]filtro.12!$A126:$H299,5,FALSE),0) -> 12
A135: 81602222 | B135: 1602222 | C135: Herida cortante o contusa NO complicada, reparación y sutura (una o múltiples de más de 5 cms de largo total que comprometa solo piel) | D135: =IFERROR(VLOOKUP($A135,[2]filtro.12!$A127:$H300,2,FALSE),0) -> 2,039 | E135: =IFERROR(VLOOKUP($A135,[2]filtro.12!$A127:$H300,3,FALSE),0) -> 1,694 | F135: =IFERROR(VLOOKUP($A135,[2]filtro.12!$A127:$H300,4,FALSE),0) -> 345 | G135: =IFERROR(VLOOKUP($A135,[2]filtro.12!$A127:$H300,5,FALSE),0) -> 14
A136: 81602223 | B136: 1602223 | C136: Cabeza, cuello, genitales: extirpación de lesión benigna subepidérmica, incluye tumor sólido, quiste epidérmico y lipoma por lesión | D136: =IFERROR(VLOOKUP($A136,[2]filtro.12!$A128:$H301,2,FALSE),0) -> 151 | E136: =IFERROR(VLOOKUP($A136,[2]filtro.12!$A128:$H301,3,FALSE),0) -> 0 | F136: =IFERROR(VLOOKUP($A136,[2]filtro.12!$A128:$H301,4,FALSE),0) -> 151 | G136: =IFERROR(VLOOKUP($A136,[2]filtro.12!$A128:$H301,5,FALSE),0) -> 117
A137: 81602224 | B137: 1602224 | C137: Resto del cuerpo: extirpación de lesión benigna subepidérmica, incluye tumor sólido, quiste epidérmico y lipoma por lesión | D137: =IFERROR(VLOOKUP($A137,[2]filtro.12!$A129:$H302,2,FALSE),0) -> 235 | E137: =IFERROR(VLOOKUP($A137,[2]filtro.12!$A129:$H302,3,FALSE),0) -> 3 | F137: =IFERROR(VLOOKUP($A137,[2]filtro.12!$A129:$H302,4,FALSE),0) -> 232 | G137: =IFERROR(VLOOKUP($A137,[2]filtro.12!$A129:$H302,5,FALSE),0) -> 175
A138: 81602225 | B138: 1602225 | C138: Vaciamiento y curetaje quirúrgico de lesiones quística o abscesos | D138: =IFERROR(VLOOKUP($A138,[2]filtro.12!$A130:$H303,2,FALSE),0) -> 202 | E138: =IFERROR(VLOOKUP($A138,[2]filtro.12!$A130:$H303,3,FALSE),0) -> 149 | F138: =IFERROR(VLOOKUP($A138,[2]filtro.12!$A130:$H303,4,FALSE),0) -> 53 | G138: =IFERROR(VLOOKUP($A138,[2]filtro.12!$A130:$H303,5,FALSE),0) -> 2
A139: 81602231 | B139: 1602231 | C139: Onisectomía total o parcial simple | D139: =IFERROR(VLOOKUP($A139,[2]filtro.12!$A131:$H304,2,FALSE),0) -> 101 | E139: =IFERROR(VLOOKUP($A139,[2]filtro.12!$A131:$H304,3,FALSE),0) -> 4 | F139: =IFERROR(VLOOKUP($A139,[2]filtro.12!$A131:$H304,4,FALSE),0) -> 97 | G139: =IFERROR(VLOOKUP($A139,[2]filtro.12!$A131:$H304,5,FALSE),0) -> 33
B140: TOTAL | D140: =SUM(D131:D139) -> 4,409 | E140: =SUM(E131:E139) -> 2,950 | F140: 1,459 | G140: 578
B142: CARDIOLOGÍA
A143: 81701001 | B143: 1701001 | C143: E.C.G. de reposo (incluye mínimo 12 derivaciones y 4 complejos por derivación) | D143: =IFERROR(VLOOKUP($A143,[2]filtro.12!$A135:$H308,2,FALSE),0) -> 79,970 | E143: =IFERROR(VLOOKUP($A143,[2]filtro.12!$A135:$H308,3,FALSE),0) -> 23,293 | F143: =IFERROR(VLOOKUP($A143,[2]filtro.12!$A135:$H308,4,FALSE),0) -> 56,677 | G143: =IFERROR(VLOOKUP($A143,[2]filtro.12!$A135:$H308,5,FALSE),0) -> 22,479
A144: 81701009 | B144: 1701009 | C144: Monitoreo continuo de presión arterial (Holter) | D144: =IFERROR(VLOOKUP($A144,[2]filtro.12!A5:H178,2,FALSE),0) -> 7,915 | E144: =IFERROR(VLOOKUP($A144,[2]filtro.12!A5:H178,3,FALSE),0) -> 1,789 | F144: =IFERROR(VLOOKUP($A144,[2]filtro.12!$A136:$H309,4,FALSE),0) -> 6,126 | G144: =IFERROR(VLOOKUP($A144,[2]filtro.12!$A136:$H309,5,FALSE),0) -> 702
A145: 81707038 | C145: Monitoreo Ambulatorio de Presión Arterial (procedimiento de 3 evaluaciones de presión arterial finalizado) | D145: =IFERROR(VLOOKUP($A145,[2]filtro.12!A6:H179,2,FALSE),0) -> 46,750 | E145: =IFERROR(VLOOKUP($A145,[2]filtro.12!A6:H179,3,FALSE),0) -> 7,544 | F145: =IFERROR(VLOOKUP($A145,[2]filtro.12!$A137:$H310,4,FALSE),0) -> 39,206 | G145: =IFERROR(VLOOKUP($A145,[2]filtro.12!$A137:$H310,5,FALSE),0) -> 0
A146: 80500016 | C146: Cartridge para Troponina | D146: =IFERROR(VLOOKUP($A146,[2]filtro.12!A7:H180,2,FALSE),0) -> 1,034 | E146: =IFERROR(VLOOKUP($A146,[2]filtro.12!A7:H180,3,FALSE),0) -> 1,004 | F146: =IFERROR(VLOOKUP($A146,[2]filtro.12!A5:H178,4,FALSE),0) -> 30 | G146: =IFERROR(VLOOKUP($A146,[2]filtro.12!A5:H178,5,FALSE),0) -> 11
A147: 80500017 | C147: Cartridge Multiple | D147: =IFERROR(VLOOKUP($A147,[2]filtro.12!A8:H181,2,FALSE),0) -> 2,629 | E147: =IFERROR(VLOOKUP($A147,[2]filtro.12!A8:H181,3,FALSE),0) -> 2,585 | F147: =IFERROR(VLOOKUP($A147,[2]filtro.12!A5:H178,4,FALSE),0) -> 44 | G147: =IFERROR(VLOOKUP($A147,[2]filtro.12!$A139:$H312,5,FALSE),0) -> 0
B148: TOTAL | D148: =SUM(D143:D147) -> 138,298 | E148: =SUM(E143:E147) -> 36,215 | F148: 102,083 | G148: =SUM(G143:G147) -> 23,192
B150: NEUMOLOGÍA
A151: 81707001 | B151: 1707001 | C151: Espirometría Basal | D151: =IFERROR(VLOOKUP($A151,[2]filtro.12!A12:H185,2,FALSE),0) -> 2,100 | E151: =IFERROR(VLOOKUP($A151,[2]filtro.12!A12:H185,3,FALSE),0) -> 0 | F151: =IFERROR(VLOOKUP($A151,[2]filtro.12!A9:H182,4,FALSE),0) -> 2,100 | G151: =IFERROR(VLOOKUP($A151,[2]filtro.12!$A143:$H316,5,FALSE),0) -> 119
A152: 81707002 | B152: 1707002 | C152: Espirometria basal y con broncodilatador | D152: =IFERROR(VLOOKUP($A152,[2]filtro.12!A13:H186,2,FALSE),0) -> 1,730 | E152: =IFERROR(VLOOKUP($A152,[2]filtro.12!A13:H186,3,FALSE),0) -> 0 | F152: =IFERROR(VLOOKUP($A152,[2]filtro.12!A10:H183,4,FALSE),0) -> 1,730 | G152: =IFERROR(VLOOKUP($A152,[2]filtro.12!$A144:$H317,5,FALSE),0) -> 24
A153: 81707004 | B153: 1707004 | C153: Test de provocacion con ejercicio | D153: =IFERROR(VLOOKUP($A153,[2]filtro.12!A14:H187,2,FALSE),0) -> 18 | E153: =IFERROR(VLOOKUP($A153,[2]filtro.12!A14:H187,3,FALSE),0) -> 8 | F153: =IFERROR(VLOOKUP($A153,[2]filtro.12!A11:H184,4,FALSE),0) -> 10 | G153: =IFERROR(VLOOKUP($A153,[2]filtro.12!$A145:$H318,5,FALSE),0) -> 0
A154: 81707030 | B154: 1707030 | C154: Aerosolterapia (Nebulización) | D154: =IFERROR(VLOOKUP($A154,[2]filtro.12!A15:H188,2,FALSE),0) -> 20,018 | E154: =IFERROR(VLOOKUP($A154,[2]filtro.12!A15:H188,3,FALSE),0) -> 18,415 | F154: =IFERROR(VLOOKUP($A154,[2]filtro.12!A12:H185,4,FALSE),0) -> 1,603 | G154: =IFERROR(VLOOKUP($A154,[2]filtro.12!$A146:$H319,5,FALSE),0) -> 159
A155: 80106006 | B155: 0106006 | C155: Oxigenoterapia domiciliaria (pacientes oxígeno dependientes) | D155: =IFERROR(VLOOKUP($A155,[2]filtro.12!A16:H189,2,FALSE),0) -> 460 | E155: =IFERROR(VLOOKUP($A155,[2]filtro.12!A16:H189,3,FALSE),0) -> 261 | F155: =IFERROR(VLOOKUP($A155,[2]filtro.12!A13:H186,4,FALSE),0) -> 199 | G155: =IFERROR(VLOOKUP($A155,[2]filtro.12!A5:H178,5,FALSE),0) -> 3
A156: 80106020 | B156: 0106020 | C156: Administración oxigeno | D156: =IFERROR(VLOOKUP($A156,[2]filtro.12!A17:H190,2,FALSE),0) -> 3,644 | E156: =IFERROR(VLOOKUP($A156,[2]filtro.12!A17:H190,3,FALSE),0) -> 3,123 | F156: =IFERROR(VLOOKUP($A156,[2]filtro.12!A14:H187,4,FALSE),0) -> 521 | G156: =IFERROR(VLOOKUP($A156,[2]filtro.12!A6:H179,5,FALSE),0) -> 75
A157: 80106021 | B157: 0106021 | C157: Aspiración secreciones | D157: =IFERROR(VLOOKUP($A157,[2]filtro.12!A18:H191,2,FALSE),0) -> 171 | E157: =IFERROR(VLOOKUP($A157,[2]filtro.12!A18:H191,3,FALSE),0) -> 112 | F157: =IFERROR(VLOOKUP($A157,[2]filtro.12!A15:H188,4,FALSE),0) -> 59 | G157: =IFERROR(VLOOKUP($A157,[2]filtro.12!A7:H180,5,FALSE),0) -> 5
B158: TOTAL | D158: =SUM(D151:D157) -> 28,141 | E158: =SUM(E151:E157) -> 21,919 | F158: 6,222 | G158: 385
B160: GASTROENTEROLOGÍA
A161: 82201014 | C161: Instalación / retiro de sonda nasogástrica | D161: =IFERROR(VLOOKUP($A161,[2]filtro.12!A22:H195,2,FALSE),0) -> 808 | E161: =IFERROR(VLOOKUP($A161,[2]filtro.12!A22:H195,3,FALSE),0) -> 580 | F161: =IFERROR(VLOOKUP($A161,[2]filtro.12!A19:H192,4,FALSE),0) -> 228 | G161: =IFERROR(VLOOKUP($A161,[2]filtro.12!A11:H184,5,FALSE),0) -> 0
A162: 80106009 | B162: 0106009 | C162: Lavado gástrico | D162: =IFERROR(VLOOKUP($A162,[2]filtro.12!A23:H196,2,FALSE),0) -> 20 | E162: =IFERROR(VLOOKUP($A162,[2]filtro.12!A23:H196,3,FALSE),0) -> 20 | F162: =IFERROR(VLOOKUP($A162,[2]filtro.12!A20:H193,4,FALSE),0) -> 0 | G162: =IFERROR(VLOOKUP($A162,[2]filtro.12!A12:H185,5,FALSE),0) -> 0
A163: 81801042 | B163: 1801042 | C163: Vaciamiento manual de fecaloma | D163: =IFERROR(VLOOKUP($A163,[2]filtro.12!A24:H197,2,FALSE),0) -> 16 | E163: =IFERROR(VLOOKUP($A163,[2]filtro.12!A24:H197,3,FALSE),0) -> 8 | F163: =IFERROR(VLOOKUP($A163,[2]filtro.12!A21:H194,4,FALSE),0) -> 8 | G163: =IFERROR(VLOOKUP($A163,[2]filtro.12!A13:H186,5,FALSE),0) -> 0
B164: TOTAL | D164: =SUM(D161:D163) -> 844 | E164: =SUM(E161:E163) -> 608 | F164: =SUM(F161:F163) -> 236
B166: UROLOGÍA
A167: 82201015 | C167: Instalación / retiro de sonda urinaria | D167: =IFERROR(VLOOKUP($A167,[2]filtro.12!A28:H201,2,FALSE),0) -> 2,802 | E167: =IFERROR(VLOOKUP($A167,[2]filtro.12!A28:H201,3,FALSE),0) -> 1,494 | F167: =IFERROR(VLOOKUP($A167,[2]filtro.12!A25:H198,4,FALSE),0) -> 1,308 | G167: =IFERROR(VLOOKUP($A167,[2]filtro.12!A17:H190,5,FALSE),0) -> 0
A168: 81901022 | B168: 1901022 | C168: Vac. Vesical por sonda uretral, (proc. Aut.) | D168: =IFERROR(VLOOKUP($A168,[2]filtro.12!A29:H202,2,FALSE),0) -> 322 | E168: =IFERROR(VLOOKUP($A168,[2]filtro.12!A29:H202,3,FALSE),0) -> 229 | F168: =IFERROR(VLOOKUP($A168,[2]filtro.12!A26:H199,4,FALSE),0) -> 93 | G168: =IFERROR(VLOOKUP($A168,[2]filtro.12!A18:H191,5,FALSE),0) -> 0
B169: TOTAL | D169: =SUM(D167:D168) -> 3,124 | E169: =SUM(E167:E168) -> 1,723 | F169: =SUM(F167:F168) -> 1,401
B171: GINECOLOGÍA
A172: 80500008 | C172: Inserción Implante Anticonceptivo | D172: =IFERROR(VLOOKUP($A172,[2]filtro.12!A33:H206,2,FALSE),0) -> 2,867 | E172: =IFERROR(VLOOKUP($A172,[2]filtro.12!A33:H206,3,FALSE),0) -> 5 | F172: =IFERROR(VLOOKUP($A172,[2]filtro.12!A30:H203,4,FALSE),0) -> 2,862 | G172: =IFERROR(VLOOKUP($A172,[2]filtro.12!A22:H195,5,FALSE),0) -> 0
A173: 80500009 | C173: Remoción Implante Anticonceptivo | D173: =IFERROR(VLOOKUP($A173,[2]filtro.12!A34:H207,2,FALSE),0) -> 2,511 | E173: =IFERROR(VLOOKUP($A173,[2]filtro.12!A34:H207,3,FALSE),0) -> 8 | F173: =IFERROR(VLOOKUP($A173,[2]filtro.12!A31:H204,4,FALSE),0) -> 2,503 | G173: =IFERROR(VLOOKUP($A173,[2]filtro.12!A23:H196,5,FALSE),0) -> 0
A174: 82001015 | B174: 2001015 | C174: Colocación o extracción de dispositivo intrauterino (no incluye el valor del dispositivo) | D174: =IFERROR(VLOOKUP($A174,[2]filtro.12!A35:H208,2,FALSE),0) -> 1,155 | E174: =IFERROR(VLOOKUP($A174,[2]filtro.12!A35:H208,3,FALSE),0) -> 3 | F174: =IFERROR(VLOOKUP($A174,[2]filtro.12!A32:H205,4,FALSE),0) -> 1,152 | G174: =IFERROR(VLOOKUP($A174,[2]filtro.12!A24:H197,5,FALSE),0) -> 0
A175: 82201016 | C175: Toma de muestra de PAP | D175: =IFERROR(VLOOKUP($A175,[2]filtro.12!A36:H209,2,FALSE),0) -> 23,797 | E175: =IFERROR(VLOOKUP($A175,[2]filtro.12!A36:H209,3,FALSE),0) -> 9 | F175: =IFERROR(VLOOKUP($A175,[2]filtro.12!A33:H206,4,FALSE),0) -> 23,788 | G175: =IFERROR(VLOOKUP($A175,[2]filtro.12!A25:H198,5,FALSE),0) -> 0
A176: 82201017 | C176: Toma de muestra de PAP (PRAPS) | D176: =IFERROR(VLOOKUP($A176,[2]filtro.12!A37:H210,2,FALSE),0) -> 7,366 | E176: =IFERROR(VLOOKUP($A176,[2]filtro.12!A37:H210,3,FALSE),0) -> 0 | F176: =IFERROR(VLOOKUP($A176,[2]filtro.12!A34:H207,4,FALSE),0) -> 7,366 | G176: =IFERROR(VLOOKUP($A176,[2]filtro.12!A26:H199,5,FALSE),0) -> 0
B177: TOTAL | D177: =SUM(D172:D176) -> 37,696 | E177: =SUM(E172:E176) -> 25 | F177: 37,671
B179: ORTOPEDIA Y TRAUMATOLOGÍA
A180: 82101001 | B180: 2101001 | C180: Infiltración local medicamentos (bursas, tendones, yuxtaarticulares y/o intraarticulares | D180: =IFERROR(VLOOKUP($A180,[2]filtro.12!A41:H214,2,FALSE),0) -> 10 | E180: =IFERROR(VLOOKUP($A180,[2]filtro.12!A41:H214,3,FALSE),0) -> 10 | F180: =IFERROR(VLOOKUP($A180,[2]filtro.12!A38:H211,4,FALSE),0) -> 0 | G180: =IFERROR(VLOOKUP($A180,[2]filtro.12!A30:H203,5,FALSE),0) -> 0
A181: 82106005 | B181: 2105004 | C181: Rodillera, bota larga o corta de yeso | D181: =IFERROR(VLOOKUP($A181,[2]filtro.12!A42:H215,2,FALSE),0) -> 401 | E181: =IFERROR(VLOOKUP($A181,[2]filtro.12!A42:H215,3,FALSE),0) -> 401 | F181: =IFERROR(VLOOKUP($A181,[2]filtro.12!A39:H212,4,FALSE),0) -> 0 | G181: =IFERROR(VLOOKUP($A181,[2]filtro.12!A31:H204,5,FALSE),0) -> 0
A182: 82106007 | B182: 2105005 | C182: Velpeau | D182: =IFERROR(VLOOKUP($A182,[2]filtro.12!A43:H216,2,FALSE),0) -> 118 | E182: =IFERROR(VLOOKUP($A182,[2]filtro.12!A43:H216,3,FALSE),0) -> 118 | F182: =IFERROR(VLOOKUP($A182,[2]filtro.12!A40:H213,4,FALSE),0) -> 0 | G182: =IFERROR(VLOOKUP($A182,[2]filtro.12!A32:H205,5,FALSE),0) -> 0
A183: 82106006 | B183: 2105006 | C183: Yeso antebraquial c/s férula digital | D183: =IFERROR(VLOOKUP($A183,[2]filtro.12!A44:H217,2,FALSE),0) -> 537 | E183: =IFERROR(VLOOKUP($A183,[2]filtro.12!A44:H217,3,FALSE),0) -> 537 | F183: =IFERROR(VLOOKUP($A183,[2]filtro.12!A41:H214,4,FALSE),0) -> 0 | G183: =IFERROR(VLOOKUP($A183,[2]filtro.12!A33:H206,5,FALSE),0) -> 0
A184: 82106004 | B184: 2105007 | C184: Yeso braquicarpiano | D184: =IFERROR(VLOOKUP($A184,[2]filtro.12!A45:H218,2,FALSE),0) -> 139 | E184: =IFERROR(VLOOKUP($A184,[2]filtro.12!A45:H218,3,FALSE),0) -> 139 | F184: =IFERROR(VLOOKUP($A184,[2]filtro.12!A42:H215,4,FALSE),0) -> 0 | G184: =IFERROR(VLOOKUP($A184,[2]filtro.12!A34:H207,5,FALSE),0) -> 0
A185: 82107003 | B185: 2107003 | C185: Luxaciones de articulaciones menores (el resto) | D185: =IFERROR(VLOOKUP($A185,[2]filtro.12!A46:H219,2,FALSE),0) -> 874 | E185: =IFERROR(VLOOKUP($A185,[2]filtro.12!A46:H219,3,FALSE),0) -> 874 | F185: =IFERROR(VLOOKUP($A185,[2]filtro.12!A43:H216,4,FALSE),0) -> 0 | G185: =IFERROR(VLOOKUP($A185,[2]filtro.12!A35:H208,5,FALSE),0) -> 0
B186: TOTAL | D186: =SUM(D180:D185) -> 2,079 | E186: =SUM(E180:E185) -> 2,079 | F186: =SUM(F180:F185) -> 0
B188: MISCELÁNEOS
A189: 80500011 | C189: Hemoglocotest instantáneo | D189: =IFERROR(VLOOKUP($A189,[2]filtro.12!A50:H223,2,FALSE),0) -> 88,673 | E189: =IFERROR(VLOOKUP($A189,[2]filtro.12!A50:H223,3,FALSE),0) -> 57,744 | F189: =IFERROR(VLOOKUP($A189,[2]filtro.12!A47:H220,4,FALSE),0) -> 30,919 | G189: =IFERROR(VLOOKUP($A189,[2]filtro.12!A39:H212,5,FALSE),0) -> 0
A190: 82201018 | C190: Entrega de Glucómetro | D190: =IFERROR(VLOOKUP($A190,[2]filtro.12!A51:H224,2,FALSE),0) -> 932 | E190: =IFERROR(VLOOKUP($A190,[2]filtro.12!A51:H224,3,FALSE),0) -> 1 | F190: =IFERROR(VLOOKUP($A190,[2]filtro.12!A48:H221,4,FALSE),0) -> 931 | G190: =IFERROR(VLOOKUP($A190,[2]filtro.12!A40:H213,5,FALSE),0) -> 0
A191: 80106002 | B191: 0106002 | C191: Curación simple ambulatoria | D191: =IFERROR(VLOOKUP($A191,[2]filtro.12!A5:H178,2,FALSE),0) -> 99,974 | E191: =IFERROR(VLOOKUP($A191,[2]filtro.12!A5:H178,3,FALSE),0) -> 19,081 | F191: =IFERROR(VLOOKUP($A191,[2]filtro.12!A5:H178,4,FALSE),0) -> 80,882 | G191: =IFERROR(VLOOKUP($A191,[2]filtro.12!A41:H214,5,FALSE),0) -> 0
A192: 82201019 | C192: Curación Avanzada | D192: =IFERROR(VLOOKUP($A192,[2]filtro.12!A53:H226,2,FALSE),0) -> 49,978 | E192: =IFERROR(VLOOKUP($A192,[2]filtro.12!A6:H179,3,FALSE),0) -> 3,084 | F192: =IFERROR(VLOOKUP($A192,[2]filtro.12!A6:H179,4,FALSE),0) -> 46,891 | G192: =IFERROR(VLOOKUP($A192,[2]filtro.12!A42:H215,5,FALSE),0) -> 0
A193: 82201020 | C193: Curación Avanzada Pie Diabético | D193: =IFERROR(VLOOKUP($A193,[2]filtro.12!A54:H227,2,FALSE),0) -> 20,025 | E193: =IFERROR(VLOOKUP($A193,[2]filtro.12!A7:H180,3,FALSE),0) -> 234 | F193: =IFERROR(VLOOKUP($A193,[2]filtro.12!A7:H180,4,FALSE),0) -> 19,791 | G193: =IFERROR(VLOOKUP($A193,[2]filtro.12!A43:H216,5,FALSE),0) -> 0
A194: 82201021 | C194: Curación Avanzada Úlcera Venosa | D194: =IFERROR(VLOOKUP($A194,[2]filtro.12!A55:H228,2,FALSE),0) -> 16,516 | E194: =IFERROR(VLOOKUP($A194,[2]filtro.12!A8:H181,3,FALSE),0) -> 328 | F194: =IFERROR(VLOOKUP($A194,[2]filtro.12!A8:H181,4,FALSE),0) -> 16,183 | G194: =IFERROR(VLOOKUP($A194,[2]filtro.12!A44:H217,5,FALSE),0) -> 0
A195: 80106023 | C195: Procedimientos de podología | D195: =IFERROR(VLOOKUP($A195,[2]filtro.12!A5:H178,2,FALSE),0) -> 41,806 | E195: =IFERROR(VLOOKUP($A195,[2]filtro.12!A9:H182,3,FALSE),0) -> 438 | F195: =IFERROR(VLOOKUP($A195,[2]filtro.12!A9:H182,4,FALSE),0) -> 41,686 | G195: =IFERROR(VLOOKUP($A195,[2]filtro.12!A45:H218,5,FALSE),0) -> 0
A196: 80106007 | B196: 0106008 | C196: Extracción cuerpo extraño ojo | D196: =IFERROR(VLOOKUP($A196,[2]filtro.12!A6:H179,2,FALSE),0) -> 1,012 | E196: =IFERROR(VLOOKUP($A196,[2]filtro.12!A10:H183,3,FALSE),0) -> 588 | F196: =IFERROR(VLOOKUP($A196,[2]filtro.12!A10:H183,4,FALSE),0) -> 424 | G196: =IFERROR(VLOOKUP($A196,[2]filtro.12!A46:H219,5,FALSE),0) -> 0
A197: 80106008 | B197: 0106010 | C197: Extracción cuerpo extraño otro lugar | D197: =IFERROR(VLOOKUP($A197,[2]filtro.12!A7:H180,2,FALSE),0) -> 799 | E197: =IFERROR(VLOOKUP($A197,[2]filtro.12!A11:H184,3,FALSE),0) -> 190 | F197: =IFERROR(VLOOKUP($A197,[2]filtro.12!A11:H184,4,FALSE),0) -> 609 | G197: =IFERROR(VLOOKUP($A197,[2]filtro.12!A47:H220,5,FALSE),0) -> 0
A198: 80106010 | B198: 0106011 | C198: Lavado oído | D198: =IFERROR(VLOOKUP($A198,[2]filtro.12!A8:H181,2,FALSE),0) -> 1,312 | E198: =IFERROR(VLOOKUP($A198,[2]filtro.12!A12:H185,3,FALSE),0) -> 116 | F198: =IFERROR(VLOOKUP($A198,[2]filtro.12!A12:H185,4,FALSE),0) -> 1,196 | G198: =IFERROR(VLOOKUP($A198,[2]filtro.12!A48:H221,5,FALSE),0) -> 0
A199: 80106011 | B199: 0106012 | C199: Técnicas reanimación cardiopulmonar básico | D199: =IFERROR(VLOOKUP($A199,[2]filtro.12!A9:H182,2,FALSE),0) -> 34 | E199: =IFERROR(VLOOKUP($A199,[2]filtro.12!A13:H186,3,FALSE),0) -> 21 | F199: =IFERROR(VLOOKUP($A199,[2]filtro.12!A13:H186,4,FALSE),0) -> 13 | G199: =IFERROR(VLOOKUP($A199,[2]filtro.12!A49:H222,5,FALSE),0) -> 0
A200: 80106012 | B200: 0106013 | C200: Técnicas reanimación cardiopulmonar avanzado | D200: =IFERROR(VLOOKUP($A200,[2]filtro.12!A10:H183,2,FALSE),0) -> 375 | E200: =IFERROR(VLOOKUP($A200,[2]filtro.12!A14:H187,3,FALSE),0) -> 57 | F200: =IFERROR(VLOOKUP($A200,[2]filtro.12!A14:H187,4,FALSE),0) -> 318 | G200: =IFERROR(VLOOKUP($A200,[2]filtro.12!A50:H223,5,FALSE),0) -> 0
A201: 80106013 | B201: 0106014 | C201: Aseo ocular | D201: =IFERROR(VLOOKUP($A201,[2]filtro.12!A11:H184,2,FALSE),0) -> 3,187 | E201: =IFERROR(VLOOKUP($A201,[2]filtro.12!A15:H188,3,FALSE),0) -> 1,929 | F201: =IFERROR(VLOOKUP($A201,[2]filtro.12!A15:H188,4,FALSE),0) -> 1,258 | G201: =IFERROR(VLOOKUP($A201,[2]filtro.12!A51:H224,5,FALSE),0) -> 0
A202: 80106014 | B202: 0106015 | C202: Administración inyecciones | D202: =IFERROR(VLOOKUP($A202,[2]filtro.12!A12:H185,2,FALSE),0) -> 413,855 | E202: =IFERROR(VLOOKUP($A202,[2]filtro.12!A16:H189,3,FALSE),0) -> 266,897 | F202: =IFERROR(VLOOKUP($A202,[2]filtro.12!A16:H189,4,FALSE),0) -> 146,948 | G202: =IFERROR(VLOOKUP($A202,[2]filtro.12!A52:H225,5,FALSE),0) -> 0
A203: 80106015 | B203: 0307011 | C203: Administración fleboclisis | D203: =IFERROR(VLOOKUP($A203,[2]filtro.12!A13:H186,2,FALSE),0) -> 70,190 | E203: =IFERROR(VLOOKUP($A203,[2]filtro.12!A17:H190,3,FALSE),0) -> 62,534 | F203: =IFERROR(VLOOKUP($A203,[2]filtro.12!A17:H190,4,FALSE),0) -> 7,655 | G203: =IFERROR(VLOOKUP($A203,[2]filtro.12!A53:H226,5,FALSE),0) -> 0
A204: 80307011 | B204: 0307012 | C204: Toma de muestra de sangre venosa en adultos | D204: =IFERROR(VLOOKUP($A204,[2]filtro.12!A14:H187,2,FALSE),0) -> 260,119 | E204: =IFERROR(VLOOKUP($A204,[2]filtro.12!A18:H191,3,FALSE),0) -> 5,177 | F204: =IFERROR(VLOOKUP($A204,[2]filtro.12!A18:H191,4,FALSE),0) -> 254,942 | G204: =IFERROR(VLOOKUP($A204,[2]filtro.12!A54:H227,5,FALSE),0) -> 65,632
A205: 80307012 | B205: 0106022 | C205: Toma de muestra de sangre venosa en niños y lactantes | D205: =IFERROR(VLOOKUP($A205,[2]filtro.12!A15:H188,2,FALSE),0) -> 15,382 | E205: =IFERROR(VLOOKUP($A205,[2]filtro.12!A19:H192,3,FALSE),0) -> 107 | F205: =IFERROR(VLOOKUP($A205,[2]filtro.12!A19:H192,4,FALSE),0) -> 15,275 | G205: =IFERROR(VLOOKUP($A205,[2]filtro.12!A55:H228,5,FALSE),0) -> 2,322
B206: TOTAL | D206: =SUM(D189:D205) -> 1,084,169 | E206: =SUM(E189:E205) -> 418,526 | F206: 665,921 | G206: 67,954
A209: CODIGOS NUEVOS
A210: 82201010
A211: 82201011
A212: 82201012
A213: 82201013
A214: 80306112
A215: 82201014
A216: 82201015
A217: 82201016
A218: 82201017
A219: 82201018
A220: 82201019
A221: 82201020
A222: 82201021
... 422 more rows

Sheet filtro.12
A1: comuna | B1: (Todas)
A2: establecimiento | B2: (Todas)
A3: Mes | B3: (Todas)
A5: Etiquetas de fila | B5: Suma de Col01 | C5: Suma de Col02 | D5: Suma de Col03 | E5: Suma de Col04 | F5: Suma de Col05 | G5: Suma de Col06 | H5: Suma de Col07
A6: 18010100 | B6: 99508 | C6: 2 | D6: 99506
A7: 18010200 | B7: 408037 | C7: 9 | D7: 408028
A8: 18010500 | B8: 2104 | C8: 0 | D8: 2104
A9: 18010601 | B9: 27208 | C9: 40 | D9: 27168
A10: 18010800 | B10: 480 | C10: 0 | D10: 480
A11: 18010900 | B11: 142661 | C11: 5245 | D11: 137416
A12: 18011001 | B12: 43237 | C12: 38654 | D12: 4583
A13: 18020200 | B13: 632 | C13: 178 | D13: 454
A14: 18020300 | B14: 28141 | C14: 21919 | D14: 6222
A15: 18020400 | B15: 113 | C15: 6 | D15: 107
A16: 18020500 | B16: 138381 | C16: 36215 | D16: 102166
A17: 18020600 | B17: 848 | C17: 608 | D17: 240
A18: 18020700 | B18: 3127 | C18: 1723 | D18: 1404
A19: 18020800 | B19: 2079 | C19: 2079
A20: 18020900 | B20: 37722 | C20: 25 | D20: 37697
A21: 18030000 | B21: 4296 | C21: 2944 | D21: 1352
A22: 18090100 | B22: 78993 | C22: 0 | D22: 78993
A23: 18090200 | B23: 9210 | C23: 1373
A24: 18090300 | B24: 64 | C24: 0
A25: 18400700 | B25: 566706
A26: 18700240 | B26: 1 | D26: 1
A27: 18700250 | B27: 903 | D27: 903
A28: 18700260 | B28: 1 | D28: 1
A29: 18700270 | B29: 1659 | D29: 1659
A30: 18700280 | B30: 1 | D30: 1
A31: 18700290 | B31: 967 | D31: 967
A32: 18700300 | B32: 8 | D32: 8
A33: 18700310 | B33: 955 | D33: 955
A34: 18700330 | B34: 201 | D34: 201
A35: 18700340 | B35: 5 | D35: 5
A36: 18700350 | B36: 604 | D36: 604
A37: 18700360 | B37: 1082893 | C37: 418526 | D37: 664367
A38: 18700370 | B38: 4304 | C38: 0 | D38: 4304
A39: 80106002 | B39: 99974 | C39: 19081 | D39: 80882
A40: 80106006 | B40: 460 | C40: 261 | D40: 199 | E40: 3
A41: 80106007 | B41: 1012 | C41: 588 | D41: 424
A42: 80106008 | B42: 799 | C42: 190 | D42: 609
A43: 80106009 | B43: 20 | C43: 20 | D43: 0
A44: 80106010 | B44: 1312 | C44: 116 | D44: 1196
A45: 80106011 | B45: 34 | C45: 21 | D45: 13
A46: 80106012 | B46: 375 | C46: 57 | D46: 318
A47: 80106013 | B47: 3187 | C47: 1929 | D47: 1258
A48: 80106014 | B48: 413855 | C48: 266897 | D48: 146948
A49: 80106015 | B49: 70190 | C49: 62534 | D49: 7655
A50: 80106020 | B50: 3644 | C50: 3123 | D50: 521 | E50: 75
A51: 80106021 | B51: 171 | C51: 112 | D51: 59 | E51: 5
A52: 80106023 | B52: 41806 | C52: 438 | D52: 41686
A53: 80301036 | B53: 5995 | C53: 0 | D53: 5493 | E53: 32822
A54: 80301041 | B54: 37710 | C54: 0 | D54: 37397 | E54: 59200
A55: 80301045 | B55: 52253 | C55: 1 | D55: 52195 | E55: 77705
A56: 80301065 | B56: 50 | C56: 0 | D56: 50 | E56: 139
A57: 80301067 | B57: 146 | D57: 146 | E57: 75
A58: 80301086 | B58: 388 | D58: 385 | E58: 1508
A59: 80302005 | B59: 33889 | C59: 0 | D59: 33871 | E59: 35558
A60: 80302013 | B60: 660 | C60: 0 | D60: 631 | E60: 8726
A61: 80302023 | B61: 57974 | C61: 0 | D61: 57438 | E61: 96432
A62: 80302024 | B62: 2456 | C62: 0 | D62: 2456 | E62: 7388
A63: 80302032 | B63: 92757 | C63: 0 | D63: 92371 | E63: 83561
A64: 80302034 | B64: 60613 | C64: 0 | D64: 60613 | E64: 71715
A65: 80302035 | B65: 609 | C65: 0 | D65: 609 | E65: 6288
A66: 80302040 | B66: 648 | C66: 0 | D66: 626 | E66: 7543
A67: 80302047 | B67: 70099 | C67: 0 | D67: 69458 | E67: 118279
A68: 80302048 | B68: 5320 | C68: 0 | D68: 5252 | E68: 10944
A69: 80302057 | B69: 36477 | C69: 0 | D69: 36456 | E69: 43470
A70: 80302063 | B70: 1137 | C70: 0 | D70: 1067 | E70: 18659
A71: 80302064 | B71: 3758 | C71: 0 | D71: 3095 | E71: 41936
A72: 80302067 | B72: 3768 | C72: 0 | D72: 3734 | E72: 46917
A73: 80302068 | B73: 1749 | C73: 0 | D73: 1723 | E73: 37095
A74: 80302075 | B74: 443 | C74: 7 | D74: 436 | E74: 2481
A75: 80302076 | B75: 31763 | C75: 0 | D75: 31763 | E75: 25161
A76: 80303024 | B76: 46128 | C76: 0 | D76: 45831 | E76: 83533
A77: 80303026 | B77: 30752 | C77: 0 | D77: 30697 | E77: 29348
A78: 80303027 | B78: 2065 | D78: 2065 | E78: 54
A79: 80305019 | B79: 2088 | C79: 0 | D79: 2087 | E79: 2549
A80: 80305020 | B80: 16 | D80: 8 | E80: 466
A81: 80306002 | B81: 194 | C81: 13 | D81: 178 | E81: 1017
A82: 80306004 | B82: 1081 | D82: 1081 | E82: 33
A83: 80306005 | B83: 358 | D83: 358 | E83: 32
A84: 80306007 | B84: 483 | C84: 6 | D84: 477 | E84: 1084
A85: 80306011 | B85: 12637 | C85: 21 | D85: 12542 | E85: 19231
A86: 80306016 | B86: 1 | D86: 1 | E86: 81
A87: 80306026 | B87: 1302 | D87: 1302 | E87: 331
A88: 80306038 | B88: 9684 | C88: 0 | D88: 9680 | E88: 19876
A89: 80306042 | B89: 75 | D89: 75 | E89: 1019
A90: 80306048 | B90: 465 | C90: 0 | D90: 464 | E90: 1074
A91: 80306051 | B91: 278 | C91: 0 | D91: 277 | E91: 268
A92: 80306052 | B92: 3 | C92: 0 | D92: 3 | E92: 79
A93: 80306059 | B93: 298 | D93: 296 | E93: 197
A94: 80306081 | B94: 9 | D94: 9 | E94: 31
A95: 80306112 | B95: 89 | D95: 89 | E95: 534
A96: 80306169 | B96: 237 | C96: 0 | D96: 237 | E96: 2050
A97: 80307011 | B97: 260119 | C97: 5177 | D97: 254942 | E97: 65632
A98: 80307012 | B98: 15382 | C98: 107 | D98: 15275 | E98: 2322
A99: 80308004 | B99: 318 | C99: 0 | D99: 317 | E99: 1666
A100: 80308005 | B100: 162 | C100: 0 | D100: 162 | E100: 248
A101: 80309010 | B101: 38446 | C101: 0 | D101: 38118 | E101: 40073
A102: 80309013 | B102: 39596 | C102: 0 | D102: 39596 | E102: 43152
A103: 80309014 | B103: 129 | C103: 0 | D103: 129 | E103: 179
A104: 80309020 | B104: 594 | D104: 594 | E104: 1789
A105: 80309022 | B105: 50984 | C105: 57 | D105: 50454 | E105: 91724
A106: 80309023 | B106: 12349 | C106: 5188 | D106: 7161 | E106: 1533
A107: 80309024 | B107: 502 | D107: 502 | E107: 8582
A108: 80401008 | B108: 4 | D108: 4 | E108: 129
A109: 80401009 | B109: 1011 | C109: 829 | D109: 182 | E109: 710
A110: 80401010 | B110: 1703 | C110: 0 | D110: 1703 | E110: 3601
A111: 80401042 | B111: 1321 | C111: 1321 | D111: 0 | E111: 336
A112: 80401043 | B112: 13 | C112: 13 | E112: 11
A113: 80401044 | B113: 2 | C113: 2 | E113: 2
A114: 80401045 | B114: 2222 | C114: 2222 | D114: 0 | E114: 573
A115: 80401046 | B115: 1263 | C115: 1263 | D115: 0 | E115: 412
A116: 80401047 | B116: 18 | C116: 18
A117: 80401048 | B117: 6 | C117: 6 | E117: 4
A118: 80401051 | B118: 2081 | C118: 2070 | D118: 11 | E118: 7255
A119: 80401052 | B119: 431 | C119: 386 | D119: 45 | E119: 314
A120: 80401053 | B120: 283 | C120: 283 | D120: 0 | E120: 62
A121: 80401054 | B121: 13023 | C121: 13023 | D121: 0 | E121: 3548
A122: 80401055 | B122: 223 | C122: 223 | D122: 0 | E122: 63
A123: 80401060 | B123: 6396 | C123: 6372 | D123: 24 | E123: 8667
A124: 80401070 | B124: 11580 | C124: 9917 | D124: 1663 | E124: 7333
A125: 80401110 | B125: 308 | D125: 308 | E125: 381
A126: 80401130 | B126: 2 | D126: 2
A127: 80401151 | B127: 1347 | C127: 706 | D127: 641 | E127: 1886
A128: 80404002 | B128: 3590 | C128: 0 | D128: 3590 | E128: 23
A129: 80404005 | B129: 493 | C129: 0 | D129: 493 | E129: 0
A130: 80404006 | B130: 468 | C130: 0 | D130: 468 | E130: 0
A131: 80500008 | B131: 2867 | C131: 5 | D131: 2862
A132: 80500009 | B132: 2511 | C132: 8 | D132: 2503
A133: 80500011 | B133: 88673 | C133: 57744 | D133: 30919
A134: 80500016 | B134: 1034 | C134: 1004 | D134: 30 | E134: 11
A135: 80500017 | B135: 2629 | C135: 2585 | D135: 44 | E135: 0
A136: 81301025 | B136: 334 | C136: 136 | D136: 198
A137: 81301026 | B137: 107 | C137: 8 | D137: 99
A138: 81301029 | B138: 28 | C138: 20 | D138: 8
A139: 81301030 | B139: 163 | C139: 14 | D139: 149
A140: 81601110 | B140: 113 | C140: 6 | D140: 107 | E140: 2
A141: 81602203 | B141: 77 | C141: 7 | D141: 70 | E141: 18
A142: 81602206 | B142: 241 | C142: 0 | D142: 241 | E142: 205
A143: 81602221 | B143: 1250 | C143: 1087 | D143: 163 | E143: 12
A144: 81602222 | B144: 2039 | C144: 1694 | D144: 345 | E144: 14
A145: 81602223 | B145: 151 | C145: 0 | D145: 151 | E145: 117
A146: 81602224 | B146: 235 | C146: 3 | D146: 232 | E146: 175
A147: 81602225 | B147: 202 | C147: 149 | D147: 53 | E147: 2
A148: 81602231 | B148: 101 | C148: 4 | D148: 97 | E148: 33
A149: 81701001 | B149: 79970 | C149: 23293 | D149: 56677 | E149: 22479
A150: 81701009 | B150: 7915 | C150: 1789 | D150: 6126 | E150: 702
A151: 81707001 | B151: 2100 | C151: 0 | D151: 2100 | E151: 119
A152: 81707002 | B152: 1730 | C152: 0 | D152: 1730 | E152: 24
A153: 81707004 | B153: 18 | C153: 8 | D153: 10
A154: 81707030 | B154: 20018 | C154: 18415 | D154: 1603 | E154: 159
A155: 81707038 | B155: 46750 | C155: 7544 | D155: 39206
A156: 81801042 | B156: 16 | C156: 8 | D156: 8
A157: 81901022 | B157: 322 | C157: 229 | D157: 93
A158: 82001015 | B158: 1155 | C158: 3 | D158: 1152
A159: 82101001 | B159: 10 | C159: 10
A160: 82106004 | B160: 139 | C160: 139
A161: 82106005 | B161: 401 | C161: 401
A162: 82106006 | B162: 537 | C162: 537
A163: 82106007 | B163: 118 | C163: 118
A164: 82107003 | B164: 874 | C164: 874
A165: 82201010 | B165: 2905 | C165: 1 | D165: 2904 | E165: 2910
A166: 82201011 | B166: 1054 | C166: 0 | D166: 1050 | E166: 1631
A167: 82201012 | B167: 1692 | C167: 0 | D167: 1689 | E167: 5310
A168: 82201013 | B168: 684 | C168: 0 | D168: 684 | E168: 2041
A169: 82201014 | B169: 808 | C169: 580 | D169: 228
A170: 82201015 | B170: 2802 | C170: 1494 | D170: 1308
A171: 82201016 | B171: 23797 | C171: 9 | D171: 23788
A172: 82201017 | B172: 7366 | C172: 0 | D172: 7366
A173: 82201018 | B173: 932 | C173: 1 | D173: 931
A174: 82201019 | B174: 49978 | C174: 3084 | D174: 46891
A175: 82201020 | B175: 20025 | C175: 234 | D175: 19791
A176: 82201021 | B176: 16516 | C176: 328 | D176: 16183
A177: (en blanco)
A178: Total general | B178: 4791549 | C178: 1057717 | D178: 3154859 | E178: 1324746
